Workbook

Sheet Guide d'utilisation
B1: Document d'appui à la déclaration première partie de conformité à la norme ISO 30301:2011 | J1: Enregistrement qualité : A4 100% vertical
D2: Autodiagnostic selon la norme ISO 30301:2011
D3: "Systèmes de gestion des documents d'activité - Exigences" édition Afnor, www.afnor.org, Décembre 2011
B4: Attention : Seules les cases blanches écrites en bleu peuvent être modifiées par l’utilisateur. Cela concerne toutes les parties de l’outil
B5: Etablissement : | E5: Nom de l'établissement / entreprise / organisation...
B6: Responsable du SMQ : | E6: NOM et Prénom du Responsable Qualité
B7: Contact du Responsable du SMQ : | E7: email : | I7: Tél :
B9: Mode d'emploi
B10: OBJECTIF: Cet outil permet aux différents utilisateurs, et en particulier aux responsables qualité d'un organisme, d'évaluer la conformité du système de gestion des documents d'activité (SGDA) selon les exigences de la norme ISO 30301:2011. Il sert aussi de tableau de bord avec lequel vous pouvez commenter, suivre et évaluer la progression de la mise en oeuvre et du maitien de votre SGDA. Ainsi, il vous donnera plus de visibilité afin de prendre les décisions et d'élaborer des actions d'amélioration continue. (NB : Cet outil ne garantit pas une certification) PRESENTATION DES ELEMENTS: La grille est constituée de six (6) onglets : - Guide d'utilisation : * Explicite le fonctionnement de l'outil et les critères d'évaluation définis - Exigences : * Des critères d'évaluation par article et sous article sont définis * Des commentaires explicitent les critères aux utilisateurs - Résultats et Actions : * Tous les résultats sont réunis sur cet onglet - Résultats par article : * Taux de CONFORMITÉ sous forme radar * Les plans d'action prioritaires à mettre en œuvre et à déployer (Quoi, Qui, Quand...) -Conseils : * Expliquent globalement l'objet de chaque article de la norme
M12: Utilitaires pour l'Autodiagnostic
M13: Paramétrage des affectations selon le N° du choix
M14: Utilisé pour {Exigences} : affectation d'un N° selon le choix réalisé
B15: Niveaux de VÉRACITÉ quant à la RÉALISATION des actions associées aux exigences de la norme | F15: LIBELLÉS des niveaux de CONFORMITÉ des ARTICLES de la norme | M15: Choix proposé | N15: A faire en manuel N° du choix croissant selon son Ordre Alphabétique : 1 à …
B16: Libellés explicites des niveaux de VÉRACITÉ | D16: Choix de VÉRACITÉ | E16: Taux de VÉRACITÉ | F16: Taux moyen Minimal | G16: Taux moyen Maximal | H16: Niveaux de CONFORMITÉ | I16: Libellés explicites des niveaux de CONFORMITÉ | M16: =D16 -> Choix de VÉRACITÉ | N16: 1
B17: Niveau 1 : L'action n'est pas réalisée ou alors de manière très aléatoire. | D17: Faux | E17: 0 | F17: 0 | G17: =F18-0.01 -> 0.09 | H17: Insuffisant | I17: Conformité de niveau 1 : Il est nécessaire de formaliser les activités réalisées. | M17: =D17 -> Faux | N17: 2
B18: Niveau 2 : L'action est réalisée quelques fois de manière informelle. | D18: Plutôt Faux | E18: =(F18+G18)/2 -> 0.295 | F18: 0.1 | G18: =F19-0.01 -> 0.49 | H18: Informel | I18: Conformité de niveau 2 : Il est nécessaire de pérenniser la bonne exécution des activités. | M18: =D18 -> Plutôt Faux | N18: 3
B19: Niveau 3 : L'action est formalisée et réalisée. | D19: Plutôt Vrai | E19: =(F19+G19)/2 -> 0.695 | F19: 0.5 | G19: =F20-0.01 -> 0.89 | H19: Convaincant | I19: Conformité de niveau 3 : Il est nécessaire de tracer et d'améliorer les activités. | M19: =D19 -> Plutôt Vrai | N19: 4
B20: Niveau 4 : L'action est formalisée, réalisée, tracée et améliorée. | D20: Vrai | E20: 1 | F20: 0.9 | G20: 1 | H20: Conforme | I20: Conformité de niveau 4 : BRAVO ! Maintenez et communiquez vos résultats. | M20: =D20 -> Vrai | N20: 5
B22: Pour en savoir plus : Mise en œuvre de la norme ISO 30301 « Système de gestion des documents d’activité », TEBOURBI Imen, Université de Technologie de Compiègne, Master Qualité et Performance dans les Organisations (QPO), Mémoire d'Intelligence Méthodologique de stage professionnel de fin d'études, www.utc.fr/master-qualite, puis "Travaux" "Qualité-Management", réf n°451, juillet 2018 Outil d’Autodiagnostic : réalisé par Imen TEBOURBI (tebourbi.imen@outlook.com)

Sheet Exigences
A1: ='Guide d''utilisation'!B1 -> Document d'appui à la déclaration première partie de conformité à la norme ISO 30301:2011 | F1: Impression sur pages A4 100% en format horizontal
B2: Autodiagnostic sur les exigences de l'ISO 30301:2011 | Q2: Somme des pondérations des Articles | R2: Taux moyen de conformité sur la Norme | S2: Niveau de RESPECT pour la norme
A3: ='Guide d''utilisation'!B5 -> Etablissement : | C3: ='Guide d''utilisation'!E5 -> Nom de l'établissement / entreprise / organisation... | K3: Somme des pondérations sur les exigences | L3: Taux moyen de CONFORMITÉ pour le sous-article | M3: Niveau de RESPECT pour le sous-article | N3: Automatique : pondération de chaque sous- chapitre | O3: Taux moyen de CONFORMITÉ pondéré pour le sous-article
A4: Date de l'autodiagnostic : | F4: Signature du responsable de l'autodiagnostic :
A5: Responsable de l'autodiagnostic : | C5: NOM et Prénom | H5: Choix réalisé | I5: N° du choix réalisé | J5: % Véracité du choix | K5: Automatique : pondération de chaque exigence | L5: Taux de CONFORMITÉ pondéré sur l'exigence | P5: Resultats, Actions et REX
C6: Tél : | E6: Email :
A7: L'équipe d'autodiagnostic : | C7: Noms et Prénoms des participants
A10: Réf. | B10: Critères d'exigence des articles de la norme | C10: Evaluations | D10: Taux % | E10: Libellés des évaluations | F10: Modes de preuve et commentaires | V10: Choix proposé | W10: A faire en manuel N° du choix croissant selon son Ordre Alphabétique : 1 à …
A11: Art. 4 | B11: Contexte de l'organisme | C11: =P11 -> Insuffisant | D11: =O11 -> 0 | E11: =IFERROR(IF(D11<='Guide d''utilisation'!$G$17,'Guide d''utilisation'!$I$17,IF(D11<='Guide d''utilisation'!$G$18,'Guide d''utilisation'!$I$18,IF(D11<='Guide d''utilisation'!$G$19,'Guide d''utilisation'!$I$19,'Guide d''utilisation'!$I$20))),"") -> Conformité de niveau 1 : Il est nécessaire de formaliser les activités réalisées. | H11: Article | M11: vérifier si Somme = 1 => | N11: =SUM(N12:N24) -> 1 | O11: =IFERROR(SUM(O12:O24),"") -> 0 | P11: =IFERROR(IF(O11<='Guide d''utilisation'!$G$17,'Guide d''utilisation'!$H$17,IF(O11<='Guide d''utilisation'!$G$18,'Guide d''utilisation'!$H$18,IF(O11<='Guide d''utilisation'!$G$19,'Guide d''utilisation'!$H$19,'Guide d''utilisation'!$H$20))),"") -> Insuffisant | Q11: =1/7 -> 0.1428571429 | R11: =O11*Q11 -> 0 | V11: Choix de VÉRACITÉ | W11: 1
A12: 4.1 | B12: Compréhension de l'organisme et de son contexte | C12: =M12 -> Insuffisant | D12: =L12 -> 0 | E12: =IFERROR(IF(D12<='Guide d''utilisation'!$G$17,'Guide d''utilisation'!$I$17,IF(D12<='Guide d''utilisation'!$G$18,'Guide d''utilisation'!$I$18,IF(D12<='Guide d''utilisation'!$G$19,'Guide d''utilisation'!$I$19,'Guide d''utilisation'!$I$20))),"") -> Conformité de niveau 1 : Il est nécessaire de formaliser les activités réalisées. | G12: Nb critères | H12: Sous-Article | J12: vérifier si Somme = 1 => | K12: =SUM(K13:K16) -> 1 | L12: =IFERROR(SUM(L13:L16),"") -> 0 | M12: =IFERROR(IF(L12<='Guide d''utilisation'!$G$17,'Guide d''utilisation'!$H$17,IF(L12<='Guide d''utilisation'!$G$18,'Guide d''utilisation'!$H$18,IF(L12<='Guide d''utilisation'!$G$19,'Guide d''utilisation'!$H$19,'Guide d''utilisation'!$H$20))),"") -> Insuffisant | N12: =1/COUNTA($M$12:$M$24) -> 0.3333333333 | O12: =N12*L12 -> 0 | V12: Faux | W12: 2
A13: cr 1 | B13: Les enjeux externes et internes sont identifiés et documentés lors de l'établissement et de la revue du Système de Gestion des Documents d'Activités (SGDA) | C13: Choix de VÉRACITÉ | D13: =J13 ->  | E13: =CHOOSE(I13,"Libellé du critère quand il sera choisi",'Guide d''utilisation'!$B$17,'Guide d''utilisation'!$B$18,'Guide d''utilisation'!$B$19,'Guide d''utilisation'!$B$20,,) -> Libellé du critère quand il sera choisi | G13: 1 | H13: =C13 -> Choix de VÉRACITÉ | I13: =IFERROR((VLOOKUP(C13,'Guide d''utilisation'!$M$16:$N$20,2)),"") -> 1 | J13: =IFERROR(CHOOSE(I13,"",'Guide d''utilisation'!$E$17,'Guide d''utilisation'!$E$18,'Guide d''utilisation'!$E$19,'Guide d''utilisation'!$E$20,),"") ->  | K13: =1/COUNTA($B$13:$B$16) -> 0.25 | L13: =IFERROR(J13*K13,"") ->  | V13: Plutôt Faux | W13: 3
A14: =CONCATENATE("cr ",MID(A13,3,4)+1) -> cr 2 | B14: Les facteurs d'influence sur les objectifs de l'organisme sont pris en compte | C14: Choix de VÉRACITÉ | D14: =J14 ->  | E14: =CHOOSE(I14,"Libellé du critère quand il sera choisi",'Guide d''utilisation'!$B$17,'Guide d''utilisation'!$B$18,'Guide d''utilisation'!$B$19,'Guide d''utilisation'!$B$20,,) -> Libellé du critère quand il sera choisi | G14: =G13+1 -> 2 | H14: =C14 -> Choix de VÉRACITÉ | I14: =IFERROR((VLOOKUP(C14,'Guide d''utilisation'!$M$16:$N$20,2)),"") -> 1 | J14: =IFERROR(CHOOSE(I14,"",'Guide d''utilisation'!$E$17,'Guide d''utilisation'!$E$18,'Guide d''utilisation'!$E$19,'Guide d''utilisation'!$E$20,),"") ->  | K14: =1/COUNTA($B$13:$B$16) -> 0.25 | L14: =IFERROR(J14*K14,"") ->  | V14: Plutôt Vrai | W14: 4
A15: =CONCATENATE("cr ",MID(A14,3,4)+1) -> cr 3 | B15: Les parties prenantes ainsi que leurs attentes sont identifiés | C15: Choix de VÉRACITÉ | D15: =J15 ->  | E15: =CHOOSE(I15,"Libellé du critère quand il sera choisi",'Guide d''utilisation'!$B$17,'Guide d''utilisation'!$B$18,'Guide d''utilisation'!$B$19,'Guide d''utilisation'!$B$20,,) -> Libellé du critère quand il sera choisi | G15: =G14+1 -> 3 | H15: =C15 -> Choix de VÉRACITÉ | I15: =IFERROR((VLOOKUP(C15,'Guide d''utilisation'!$M$16:$N$20,2)),"") -> 1 | J15: =IFERROR(CHOOSE(I15,"",'Guide d''utilisation'!$E$17,'Guide d''utilisation'!$E$18,'Guide d''utilisation'!$E$19,'Guide d''utilisation'!$E$20,),"") ->  | K15: =1/COUNTA($B$13:$B$16) -> 0.25 | L15: =IFERROR(J15*K15,"") ->  | V15: Vrai | W15: 5
A16: cr 4 | B16: La gouvernance, la structure organisationnelle, les rôles et les responsabilités sont pris en considération | C16: Choix de VÉRACITÉ | E16: =CHOOSE(I16,"Libellé du critère quand il sera choisi",'Guide d''utilisation'!$B$17,'Guide d''utilisation'!$B$18,'Guide d''utilisation'!$B$19,'Guide d''utilisation'!$B$20,,) -> Libellé du critère quand il sera choisi | G16: 4 | H16: Choix de VÉRACITÉ | I16: =IFERROR((VLOOKUP(C16,'Guide d''utilisation'!$M$16:$N$20,2)),"") -> 1 | J16: =IFERROR(CHOOSE(I16,"",'Guide d''utilisation'!$E$17,'Guide d''utilisation'!$E$18,'Guide d''utilisation'!$E$19,'Guide d''utilisation'!$E$20,),"") ->  | K16: 0.25
A17: 4.2 | B17: Exigences opérationnelles, exigences légales et autres exigences | C17: =M17 -> Insuffisant | D17: =L17 -> 0 | E17: =IFERROR(IF(D17<='Guide d''utilisation'!$G$17,'Guide d''utilisation'!$I$17,IF(D17<='Guide d''utilisation'!$G$18,'Guide d''utilisation'!$I$18,IF(D17<='Guide d''utilisation'!$G$19,'Guide d''utilisation'!$I$19,'Guide d''utilisation'!$I$20))),"") -> Conformité de niveau 1 : Il est nécessaire de formaliser les activités réalisées. | H17: Sous-Article | J17: vérifier si Somme = 1 => | K17: =SUM(K18:K21) -> 1 | L17: =IFERROR(SUM(L18:L21),"") -> 0 | M17: =IFERROR(IF(L17<='Guide d''utilisation'!$G$17,'Guide d''utilisation'!$H$17,IF(L17<='Guide d''utilisation'!$G$18,'Guide d''utilisation'!$H$18,IF(L17<='Guide d''utilisation'!$G$19,'Guide d''utilisation'!$H$19,'Guide d''utilisation'!$H$20))),"") -> Insuffisant | N17: =1/COUNTA($M$12:$M$24) -> 0.3333333333 | O17: =N17*L17 -> 0
A18: =CONCATENATE("cr ",MID(A16,3,4)+1) -> cr 5 | B18: Les besoins opérationnels, les exigences légales, réglementaires ainsi que les autres exigences afféctant l'activité sont pris en compte lors de l'établissement et la revue des objectifs | C18: Choix de VÉRACITÉ | D18: =J18 ->  | E18: =CHOOSE(I18,"Libellé du critère quand il sera choisi",'Guide d''utilisation'!$B$17,'Guide d''utilisation'!$B$18,'Guide d''utilisation'!$B$19,'Guide d''utilisation'!$B$20,,) -> Libellé du critère quand il sera choisi | G18: =G16+1 -> 5 | H18: =C18 -> Choix de VÉRACITÉ | I18: =IFERROR((VLOOKUP(C18,'Guide d''utilisation'!$M$16:$N$20,2)),"") -> 1 | J18: =IFERROR(CHOOSE(I18,"",'Guide d''utilisation'!$E$17,'Guide d''utilisation'!$E$18,'Guide d''utilisation'!$E$19,'Guide d''utilisation'!$E$20,),"") ->  | K18: =1/COUNTA($B$18:$B$21) -> 0.25 | L18: =IFERROR(J18*K18,"") -> 
A19: =CONCATENATE("cr ",MID(A18,3,4)+1) -> cr 6 | B19: Les exigences opérationnelles, les exigences légales, réglementaires et les autres exigences affectant l'activité sont évaluées et documentées | C19: Choix de VÉRACITÉ | D19: =J19 ->  | E19: =CHOOSE(I19,"Libellé du critère quand il sera choisi",'Guide d''utilisation'!$B$17,'Guide d''utilisation'!$B$18,'Guide d''utilisation'!$B$19,'Guide d''utilisation'!$B$20,,) -> Libellé du critère quand il sera choisi | G19: =G18+1 -> 6 | H19: =C19 -> Choix de VÉRACITÉ | I19: =IFERROR((VLOOKUP(C19,'Guide d''utilisation'!$M$16:$N$20,2)),"") -> 1 | J19: =IFERROR(CHOOSE(I19,"",'Guide d''utilisation'!$E$17,'Guide d''utilisation'!$E$18,'Guide d''utilisation'!$E$19,'Guide d''utilisation'!$E$20,),"") ->  | K19: =1/COUNTA($B$18:$B$21) -> 0.25 | L19: =IFERROR(J19*K19,"") -> 
A20: =CONCATENATE("cr ",MID(A19,3,4)+1) -> cr 7 | B20: Les exigences opérationnelles sont liées à la performance de l'entreprise, à la planification, à la gestion des risques et au plan de continuité des activités | C20: Choix de VÉRACITÉ | D20: =J20 ->  | E20: =CHOOSE(I20,"Libellé du critère quand il sera choisi",'Guide d''utilisation'!$B$17,'Guide d''utilisation'!$B$18,'Guide d''utilisation'!$B$19,'Guide d''utilisation'!$B$20,,) -> Libellé du critère quand il sera choisi | G20: =G19+1 -> 7 | H20: =C20 -> Choix de VÉRACITÉ | I20: =IFERROR((VLOOKUP(C20,'Guide d''utilisation'!$M$16:$N$20,2)),"") -> 1 | J20: =IFERROR(CHOOSE(I20,"",'Guide d''utilisation'!$E$17,'Guide d''utilisation'!$E$18,'Guide d''utilisation'!$E$19,'Guide d''utilisation'!$E$20,),"") ->  | K20: =1/COUNTA($B$18:$B$21) -> 0.25 | L20: =IFERROR(J20*K20,"") -> 
A21: cr 8 | B21: Une veille réglementaire et normative sont mises en place | C21: Choix de VÉRACITÉ | E21: =CHOOSE(I21,"Libellé du critère quand il sera choisi",'Guide d''utilisation'!$B$17,'Guide d''utilisation'!$B$18,'Guide d''utilisation'!$B$19,'Guide d''utilisation'!$B$20,,) -> Libellé du critère quand il sera choisi | G21: 8 | H21: Choix de VÉRACITÉ | I21: =IFERROR((VLOOKUP(C21,'Guide d''utilisation'!$M$16:$N$20,2)),"") -> 1 | J21: =IFERROR(CHOOSE(I21,"",'Guide d''utilisation'!$E$17,'Guide d''utilisation'!$E$18,'Guide d''utilisation'!$E$19,'Guide d''utilisation'!$E$20,),"") ->  | K21: 0.25
A22: 4.3 | B22: Détermination du domaine d'application du SGDA | C22: =M22 -> Insuffisant | D22: =L22 -> 0 | E22: =IFERROR(IF(D22<='Guide d''utilisation'!$G$17,'Guide d''utilisation'!$I$17,IF(D22<='Guide d''utilisation'!$G$18,'Guide d''utilisation'!$I$18,IF(D22<='Guide d''utilisation'!$G$19,'Guide d''utilisation'!$I$19,'Guide d''utilisation'!$I$20))),"") -> Conformité de niveau 1 : Il est nécessaire de formaliser les activités réalisées. | H22: Sous-Article | J22: vérifier si Somme = 1 => | K22: =SUM(K23:K24) -> 1 | L22: =IFERROR(SUM(L23:L24),"") -> 0 | M22: =IFERROR(IF(L22<='Guide d''utilisation'!$G$17,'Guide d''utilisation'!$H$17,IF(L22<='Guide d''utilisation'!$G$18,'Guide d''utilisation'!$H$18,IF(L22<='Guide d''utilisation'!$G$19,'Guide d''utilisation'!$H$19,'Guide d''utilisation'!$H$20))),"") -> Insuffisant | N22: =1/COUNTA($M$12:$M$24) -> 0.3333333333 | O22: =N22*L22 -> 0
A23: =CONCATENATE("cr ",MID(A21,3,4)+1) -> cr 9 | B23: Le domaine d'application du SGDA est défini et documenté en déterminant ses limites et son applicabilité | C23: Choix de VÉRACITÉ | D23: =J23 ->  | E23: =CHOOSE(I23,"Libellé du critère quand il sera choisi",'Guide d''utilisation'!$B$17,'Guide d''utilisation'!$B$18,'Guide d''utilisation'!$B$19,'Guide d''utilisation'!$B$20,,) -> Libellé du critère quand il sera choisi | G23: =G21+1 -> 9 | H23: =C23 -> Choix de VÉRACITÉ | I23: =IFERROR((VLOOKUP(C23,'Guide d''utilisation'!$M$16:$N$20,2)),"") -> 1 | J23: =IFERROR(CHOOSE(I23,"",'Guide d''utilisation'!$E$17,'Guide d''utilisation'!$E$18,'Guide d''utilisation'!$E$19,'Guide d''utilisation'!$E$20,),"") ->  | K23: =1/COUNTA($B$23:$B$24) -> 0.5 | L23: =IFERROR(J23*K23,"") -> 
A24: =CONCATENATE("cr ",MID(A23,3,4)+1) -> cr 10 | B24: Les processus externalisés et les sous-traitants sont controlés et identifiés | C24: Choix de VÉRACITÉ | D24: =J24 ->  | E24: =CHOOSE(I24,"Libellé du critère quand il sera choisi",'Guide d''utilisation'!$B$17,'Guide d''utilisation'!$B$18,'Guide d''utilisation'!$B$19,'Guide d''utilisation'!$B$20,,) -> Libellé du critère quand il sera choisi | G24: =G23+1 -> 10 | H24: =C24 -> Choix de VÉRACITÉ | I24: =IFERROR((VLOOKUP(C24,'Guide d''utilisation'!$M$16:$N$20,2)),"") -> 1 | J24: =IFERROR(CHOOSE(I24,"",'Guide d''utilisation'!$E$17,'Guide d''utilisation'!$E$18,'Guide d''utilisation'!$E$19,'Guide d''utilisation'!$E$20,),"") ->  | K24: =1/COUNTA($B$23:$B$24) -> 0.5 | L24: =IFERROR(J24*K24,"") -> 
A25: Art. 5 | B25: Leadership | C25: =P25 -> Insuffisant | D25: =O25 -> 0 | E25: =IFERROR(IF(D25<='Guide d''utilisation'!$G$17,'Guide d''utilisation'!$I$17,IF(D25<='Guide d''utilisation'!$G$18,'Guide d''utilisation'!$I$18,IF(D25<='Guide d''utilisation'!$G$19,'Guide d''utilisation'!$I$19,'Guide d''utilisation'!$I$20))),"") -> Conformité de niveau 1 : Il est nécessaire de formaliser les activités réalisées. | H25: Article | M25: vérifier si Somme = 1 => | N25: =SUM(N26:N37) -> 1 | O25: =IFERROR(SUM(O26:O40),"") -> 0 | P25: =IFERROR(IF(O25<='Guide d''utilisation'!$G$17,'Guide d''utilisation'!$H$17,IF(O25<='Guide d''utilisation'!$G$18,'Guide d''utilisation'!$H$18,IF(O25<='Guide d''utilisation'!$G$19,'Guide d''utilisation'!$H$19,'Guide d''utilisation'!$H$20))),"") -> Insuffisant | Q25: =1/7 -> 0.1428571429 | R25: =O25*Q25 -> 0
A26: 5.1 | B26: Leadership et engagement | C26: =M26 -> Insuffisant | D26: =L26 -> 0 | E26: =IFERROR(IF(D26<='Guide d''utilisation'!$G$17,'Guide d''utilisation'!$I$17,IF(D26<='Guide d''utilisation'!$G$18,'Guide d''utilisation'!$I$18,IF(D26<='Guide d''utilisation'!$G$19,'Guide d''utilisation'!$I$19,'Guide d''utilisation'!$I$20))),"") -> Conformité de niveau 1 : Il est nécessaire de formaliser les activités réalisées. | H26: Sous-Article | J26: vérifier si Somme = 1 => | K26: =SUM(K27:K30) -> 1 | L26: =IFERROR(SUM(L27:L30),"") -> 0 | M26: =IFERROR(IF(L26<='Guide d''utilisation'!$G$17,'Guide d''utilisation'!$H$17,IF(L26<='Guide d''utilisation'!$G$18,'Guide d''utilisation'!$H$18,IF(L26<='Guide d''utilisation'!$G$19,'Guide d''utilisation'!$H$19,'Guide d''utilisation'!$H$20))),"") -> Insuffisant | N26: =1/COUNTA($M$26:$M$37) -> 0.3333333333 | O26: =N26*L26 -> 0
A27: =CONCATENATE("cr ",MID(A24,3,4)+1) -> cr 11 | B27: La direction assure la compatibilité du SGDA avec l'orientation stratégique de l'entreprise en intégrant les exigences dans les processus métier et en sensibilisant le personnel par des actions de communication | C27: Choix de VÉRACITÉ | D27: =J27 ->  | E27: =CHOOSE(I27,"Libellé du critère quand il sera choisi",'Guide d''utilisation'!$B$17,'Guide d''utilisation'!$B$18,'Guide d''utilisation'!$B$19,'Guide d''utilisation'!$B$20,,) -> Libellé du critère quand il sera choisi | G27: =G24+1 -> 11 | H27: =C27 -> Choix de VÉRACITÉ | I27: =IFERROR((VLOOKUP(C27,'Guide d''utilisation'!$M$16:$N$20,2)),"") -> 1 | J27: =IFERROR(CHOOSE(I27,"",'Guide d''utilisation'!$E$17,'Guide d''utilisation'!$E$18,'Guide d''utilisation'!$E$19,'Guide d''utilisation'!$E$20,),"") ->  | K27: =1/COUNTA($B$27:$B$30) -> 0.25 | L27: =IFERROR(J27*K27,"") -> 
A28: =CONCATENATE("cr ",MID(A27,3,4)+1) -> cr 12 | B28: La direction s'assure de la disponibilité des ressources nécessaires pour le SGDA | C28: Choix de VÉRACITÉ | D28: =J28 ->  | E28: =CHOOSE(I28,"Libellé du critère quand il sera choisi",'Guide d''utilisation'!$B$17,'Guide d''utilisation'!$B$18,'Guide d''utilisation'!$B$19,'Guide d''utilisation'!$B$20,,) -> Libellé du critère quand il sera choisi | G28: =G27+1 -> 12 | H28: =C28 -> Choix de VÉRACITÉ | I28: =IFERROR((VLOOKUP(C28,'Guide d''utilisation'!$M$16:$N$20,2)),"") -> 1 | J28: =IFERROR(CHOOSE(I28,"",'Guide d''utilisation'!$E$17,'Guide d''utilisation'!$E$18,'Guide d''utilisation'!$E$19,'Guide d''utilisation'!$E$20,),"") ->  | K28: =1/COUNTA($B$27:$B$30) -> 0.25 | L28: =IFERROR(J28*K28,"") -> 
A29: =CONCATENATE("cr ",MID(A28,3,4)+1) -> cr 13 | B29: La direction s'assure que les objectifs relatifs aux documents d'activité sont atteints | C29: Choix de VÉRACITÉ | D29: =J29 ->  | E29: =CHOOSE(I29,"Libellé du critère quand il sera choisi",'Guide d''utilisation'!$B$17,'Guide d''utilisation'!$B$18,'Guide d''utilisation'!$B$19,'Guide d''utilisation'!$B$20,,) -> Libellé du critère quand il sera choisi | G29: =G28+1 -> 13 | H29: =C29 -> Choix de VÉRACITÉ | I29: =IFERROR((VLOOKUP(C29,'Guide d''utilisation'!$M$16:$N$20,2)),"") -> 1 | J29: =IFERROR(CHOOSE(I29,"",'Guide d''utilisation'!$E$17,'Guide d''utilisation'!$E$18,'Guide d''utilisation'!$E$19,'Guide d''utilisation'!$E$20,),"") ->  | K29: =1/COUNTA($B$27:$B$30) -> 0.25 | L29: =IFERROR(J29*K29,"") -> 
A30: =CONCATENATE("cr ",MID(A29,3,4)+1) -> cr 14 | B30: La direction soutient une politique d'amélioration continue | C30: Choix de VÉRACITÉ | D30: =J30 ->  | E30: =CHOOSE(I30,"Libellé du critère quand il sera choisi",'Guide d''utilisation'!$B$17,'Guide d''utilisation'!$B$18,'Guide d''utilisation'!$B$19,'Guide d''utilisation'!$B$20,,) -> Libellé du critère quand il sera choisi | G30: =G29+1 -> 14 | H30: =C30 -> Choix de VÉRACITÉ | I30: =IFERROR((VLOOKUP(C30,'Guide d''utilisation'!$M$16:$N$20,2)),"") -> 1 | J30: =IFERROR(CHOOSE(I30,"",'Guide d''utilisation'!$E$17,'Guide d''utilisation'!$E$18,'Guide d''utilisation'!$E$19,'Guide d''utilisation'!$E$20,),"") ->  | K30: =1/COUNTA($B$27:$B$30) -> 0.25 | L30: =IFERROR(J30*K30,"") -> 
A31: 5.2 | B31: Politique | C31: =M31 -> Insuffisant | D31: =L31 -> 0 | E31: =IFERROR(IF(D31<='Guide d''utilisation'!$G$17,'Guide d''utilisation'!$I$17,IF(D31<='Guide d''utilisation'!$G$18,'Guide d''utilisation'!$I$18,IF(D31<='Guide d''utilisation'!$G$19,'Guide d''utilisation'!$I$19,'Guide d''utilisation'!$I$20))),"") -> Conformité de niveau 1 : Il est nécessaire de formaliser les activités réalisées. | H31: Sous-Article | J31: vérifier si Somme = 1 => | K31: =SUM(K32:K35) -> 1 | L31: =IFERROR(SUM(L32:L35),"") -> 0 | M31: =IFERROR(IF(L31<='Guide d''utilisation'!$G$17,'Guide d''utilisation'!$H$17,IF(L31<='Guide d''utilisation'!$G$18,'Guide d''utilisation'!$H$18,IF(L31<='Guide d''utilisation'!$G$19,'Guide d''utilisation'!$H$19,'Guide d''utilisation'!$H$20))),"") -> Insuffisant | N31: =1/COUNTA($M$26:$M$37) -> 0.3333333333 | O31: =N31*L31 -> 0
A32: =CONCATENATE("cr ",MID(A30,3,4)+1) -> cr 15 | B32: La direction établit une politique qui est en accord avec la finalité de l'entreprise et qui inclut les objectifs stratégiques du SGDA | C32: Choix de VÉRACITÉ | D32: =J32 ->  | E32: =CHOOSE(I32,"Libellé du critère quand il sera choisi",'Guide d''utilisation'!$B$17,'Guide d''utilisation'!$B$18,'Guide d''utilisation'!$B$19,'Guide d''utilisation'!$B$20,,) -> Libellé du critère quand il sera choisi | G32: =G30+1 -> 15 | H32: =C32 -> Choix de VÉRACITÉ | I32: =IFERROR((VLOOKUP(C32,'Guide d''utilisation'!$M$16:$N$20,2)),"") -> 1 | J32: =IFERROR(CHOOSE(I32,"",'Guide d''utilisation'!$E$17,'Guide d''utilisation'!$E$18,'Guide d''utilisation'!$E$19,'Guide d''utilisation'!$E$20,),"") ->  | K32: =1/COUNTA($B$32:$B$35) -> 0.25 | L32: =IFERROR(J32*K32,"") -> 
A33: =CONCATENATE("cr ",MID(A32,3,4)+1) -> cr 16 | B33: La politique est disponible et tenue à jour | C33: Choix de VÉRACITÉ | D33: =J33 ->  | E33: =CHOOSE(I33,"Libellé du critère quand il sera choisi",'Guide d''utilisation'!$B$17,'Guide d''utilisation'!$B$18,'Guide d''utilisation'!$B$19,'Guide d''utilisation'!$B$20,,) -> Libellé du critère quand il sera choisi | G33: =G32+1 -> 16 | H33: =C33 -> Choix de VÉRACITÉ | I33: =IFERROR((VLOOKUP(C33,'Guide d''utilisation'!$M$16:$N$20,2)),"") -> 1 | J33: =IFERROR(CHOOSE(I33,"",'Guide d''utilisation'!$E$17,'Guide d''utilisation'!$E$18,'Guide d''utilisation'!$E$19,'Guide d''utilisation'!$E$20,),"") ->  | K33: =1/COUNTA($B$32:$B$35) -> 0.25 | L33: =IFERROR(J33*K33,"") -> 
A34: =CONCATENATE("cr ",MID(A33,3,4)+1) -> cr 17 | B34: La politique qualité est communiquée, comprise et appliquée au sein de l'organisme | C34: Choix de VÉRACITÉ | D34: =J34 ->  | E34: =CHOOSE(I34,"Libellé du critère quand il sera choisi",'Guide d''utilisation'!$B$17,'Guide d''utilisation'!$B$18,'Guide d''utilisation'!$B$19,'Guide d''utilisation'!$B$20,,) -> Libellé du critère quand il sera choisi | G34: =G33+1 -> 17 | H34: =C34 -> Choix de VÉRACITÉ | I34: =IFERROR((VLOOKUP(C34,'Guide d''utilisation'!$M$16:$N$20,2)),"") -> 1 | J34: =IFERROR(CHOOSE(I34,"",'Guide d''utilisation'!$E$17,'Guide d''utilisation'!$E$18,'Guide d''utilisation'!$E$19,'Guide d''utilisation'!$E$20,),"") ->  | K34: =1/COUNTA($B$32:$B$35) -> 0.25 | L34: =IFERROR(J34*K34,"") -> 
A35: cr 18 | B35: La politique est mise à disposition des parties interessées | C35: Choix de VÉRACITÉ | E35: =CHOOSE(I35,"Libellé du critère quand il sera choisi",'Guide d''utilisation'!$B$17,'Guide d''utilisation'!$B$18,'Guide d''utilisation'!$B$19,'Guide d''utilisation'!$B$20,,) -> Libellé du critère quand il sera choisi | G35: 18 | H35: Choix de VÉRACITÉ | I35: =IFERROR((VLOOKUP(C35,'Guide d''utilisation'!$M$16:$N$20,2)),"") -> 1 | J35: =IFERROR(CHOOSE(I35,"",'Guide d''utilisation'!$E$17,'Guide d''utilisation'!$E$18,'Guide d''utilisation'!$E$19,'Guide d''utilisation'!$E$20,),"") ->  | K35: 0.25
A36: 5.3 | B36: Rôles, responsabilités et habilitations au sein de l'organisme | C36: =M36 -> Insuffisant | D36: =L36 -> 0 | E36: =IFERROR(IF(D36<='Guide d''utilisation'!$G$17,'Guide d''utilisation'!$I$17,IF(D36<='Guide d''utilisation'!$G$18,'Guide d''utilisation'!$I$18,IF(D36<='Guide d''utilisation'!$G$19,'Guide d''utilisation'!$I$19,'Guide d''utilisation'!$I$20))),"") -> Conformité de niveau 1 : Il est nécessaire de formaliser les activités réalisées. | H36: Sous-Article | J36: vérifier si Somme = 1 => | K36: =SUM(K37:K40) -> 1 | L36: =IFERROR(SUM(L37:L40),"") -> 0 | M36: =IFERROR(IF(L36<='Guide d''utilisation'!$G$17,'Guide d''utilisation'!$H$17,IF(L36<='Guide d''utilisation'!$G$18,'Guide d''utilisation'!$H$18,IF(L36<='Guide d''utilisation'!$G$19,'Guide d''utilisation'!$H$19,'Guide d''utilisation'!$H$20))),"") -> Insuffisant | N36: =1/COUNTA($M$26:$M$37) -> 0.3333333333 | O36: =N36*L36 -> 0
A37: =CONCATENATE("cr ",MID(A35,3,4)+1) -> cr 19 | B37: La direction s'assure que les responsabilités et autorités et habilitations sont définis, assignés et communiquées au sein de l'organisme ( pour le personnel et managers susceptibles d'avoir des liens avec GDA) | C37: Choix de VÉRACITÉ | D37: =J37 ->  | E37: =CHOOSE(I37,"Libellé du critère quand il sera choisi",'Guide d''utilisation'!$B$17,'Guide d''utilisation'!$B$18,'Guide d''utilisation'!$B$19,'Guide d''utilisation'!$B$20,,) -> Libellé du critère quand il sera choisi | G37: =G35+1 -> 19 | H37: =C37 -> Choix de VÉRACITÉ | I37: =IFERROR((VLOOKUP(C37,'Guide d''utilisation'!$M$16:$N$20,2)),"") -> 1 | J37: =IFERROR(CHOOSE(I37,"",'Guide d''utilisation'!$E$17,'Guide d''utilisation'!$E$18,'Guide d''utilisation'!$E$19,'Guide d''utilisation'!$E$20,),"") ->  | K37: =1/COUNTA($B$37:$B$40) -> 0.25 | L37: =IFERROR(J37*K37,"") -> 
A38: =CONCATENATE("cr ",MID(A37,3,4)+1) -> cr 20 | B38: Les responsabilités et autorités associées à la performance du SGDA et son évolution sont attribuées | C38: Choix de VÉRACITÉ | D38: =J38 ->  | E38: =CHOOSE(I38,"Libellé du critère quand il sera choisi",'Guide d''utilisation'!$B$17,'Guide d''utilisation'!$B$18,'Guide d''utilisation'!$B$19,'Guide d''utilisation'!$B$20,,) -> Libellé du critère quand il sera choisi | G38: =G37+1 -> 20 | H38: =C38 -> Choix de VÉRACITÉ | I38: =IFERROR((VLOOKUP(C38,'Guide d''utilisation'!$M$16:$N$20,2)),"") -> 1 | J38: =IFERROR(CHOOSE(I38,"",'Guide d''utilisation'!$E$17,'Guide d''utilisation'!$E$18,'Guide d''utilisation'!$E$19,'Guide d''utilisation'!$E$20,),"") ->  | K38: =1/COUNTA($B$37:$B$40) -> 0.25 | L38: =IFERROR(J38*K38,"") -> 
A39: =CONCATENATE("cr ",MID(A38,3,4)+1) -> cr 21 | B39: Les responsabilités sont affectées aux personnels occuppant les fonctions et niveaux pertinents (cadre supérieur, responsables des documents d'activité par exemple) | C39: Choix de VÉRACITÉ | D39: =J39 ->  | E39: =CHOOSE(I39,"Libellé du critère quand il sera choisi",'Guide d''utilisation'!$B$17,'Guide d''utilisation'!$B$18,'Guide d''utilisation'!$B$19,'Guide d''utilisation'!$B$20,,) -> Libellé du critère quand il sera choisi | G39: =G38+1 -> 21 | H39: =C39 -> Choix de VÉRACITÉ | I39: =IFERROR((VLOOKUP(C39,'Guide d''utilisation'!$M$16:$N$20,2)),"") -> 1 | J39: =IFERROR(CHOOSE(I39,"",'Guide d''utilisation'!$E$17,'Guide d''utilisation'!$E$18,'Guide d''utilisation'!$E$19,'Guide d''utilisation'!$E$20,),"") ->  | K39: =1/COUNTA($B$37:$B$40) -> 0.25 | L39: =IFERROR(J39*K39,"") -> 
A40: =CONCATENATE("cr ",MID(A39,3,4)+1) -> cr 22 | B40: Le leadership est attribué à un représentant spécifique issu de la direction | C40: Choix de VÉRACITÉ | E40: =CHOOSE(I40,"Libellé du critère quand il sera choisi",'Guide d''utilisation'!$B$17,'Guide d''utilisation'!$B$18,'Guide d''utilisation'!$B$19,'Guide d''utilisation'!$B$20,,) -> Libellé du critère quand il sera choisi | G40: 22 | H40: Choix de VÉRACITÉ | I40: =IFERROR((VLOOKUP(C40,'Guide d''utilisation'!$M$16:$N$20,2)),"") -> 1 | J40: =IFERROR(CHOOSE(I40,"",'Guide d''utilisation'!$E$17,'Guide d''utilisation'!$E$18,'Guide d''utilisation'!$E$19,'Guide d''utilisation'!$E$20,),"") ->  | K40: 0.25
A41: Art. 6 | B41: Planification | C41: =P41 -> Insuffisant | D41: =O41 -> 0 | E41: =IFERROR(IF(D41<='Guide d''utilisation'!$G$17,'Guide d''utilisation'!$I$17,IF(D41<='Guide d''utilisation'!$G$18,'Guide d''utilisation'!$I$18,IF(D41<='Guide d''utilisation'!$G$19,'Guide d''utilisation'!$I$19,'Guide d''utilisation'!$I$20))),"") -> Conformité de niveau 1 : Il est nécessaire de formaliser les activités réalisées. | H41: Article | M41: vérifier si Somme = 1 => | N41: =SUM(N42:N54) -> 1 | O41: =IFERROR(SUM(O42:O54),"") -> 0 | P41: =IFERROR(IF(O41<='Guide d''utilisation'!$G$17,'Guide d''utilisation'!$H$17,IF(O41<='Guide d''utilisation'!$G$18,'Guide d''utilisation'!$H$18,IF(O41<='Guide d''utilisation'!$G$19,'Guide d''utilisation'!$H$19,'Guide d''utilisation'!$H$20))),"") -> Insuffisant | Q41: =1/7 -> 0.1428571429 | R41: =O41*Q41 -> 0
A42: 6.1 | B42: Actions à mener pour prendre en compte les risques et opportunités | C42: =M42 -> Insuffisant | D42: =L42 -> 0 | E42: =IFERROR(IF(D42<='Guide d''utilisation'!$G$17,'Guide d''utilisation'!$I$17,IF(D42<='Guide d''utilisation'!$G$18,'Guide d''utilisation'!$I$18,IF(D42<='Guide d''utilisation'!$G$19,'Guide d''utilisation'!$I$19,'Guide d''utilisation'!$I$20))),"") -> Conformité de niveau 1 : Il est nécessaire de formaliser les activités réalisées. | H42: Sous-Article | J42: vérifier si Somme = 1 => | K42: =SUM(K43:K46) -> 1 | L42: =IFERROR(SUM(L43:L46),"") -> 0 | M42: =IFERROR(IF(L42<='Guide d''utilisation'!$G$17,'Guide d''utilisation'!$H$17,IF(L42<='Guide d''utilisation'!$G$18,'Guide d''utilisation'!$H$18,IF(L42<='Guide d''utilisation'!$G$19,'Guide d''utilisation'!$H$19,'Guide d''utilisation'!$H$20))),"") -> Insuffisant | N42: =1/COUNTA($M$42:$M$54) -> 0.5 | O42: =N42*L42 -> 0
A43: =CONCATENATE("cr ",MID(A40,3,4)+1) -> cr 23 | B43: Les risques et opportunités sont déterminés pour améliorer la performance du SGDA en lien avec les enjeux à relever et les objectifs à atteindre | C43: Choix de VÉRACITÉ | D43: =J43 ->  | E43: =CHOOSE(I43,"Libellé du critère quand il sera choisi",'Guide d''utilisation'!$B$17,'Guide d''utilisation'!$B$18,'Guide d''utilisation'!$B$19,'Guide d''utilisation'!$B$20,,) -> Libellé du critère quand il sera choisi | G43: =G40+1 -> 23 | H43: =C43 -> Choix de VÉRACITÉ | I43: =IFERROR((VLOOKUP(C43,'Guide d''utilisation'!$M$16:$N$20,2)),"") -> 1 | J43: =IFERROR(CHOOSE(I43,"",'Guide d''utilisation'!$E$17,'Guide d''utilisation'!$E$18,'Guide d''utilisation'!$E$19,'Guide d''utilisation'!$E$20,),"") ->  | K43: =1/COUNTA($B$43:$B$46) -> 0.25 | L43: =IFERROR(J43*K43,"") -> 
A44: =CONCATENATE("cr ",MID(A43,3,4)+1) -> cr 24 | B44: L'orgamisme planifie et met en oeuvre les actions face aux risques et opportunités sélectionnés | C44: Choix de VÉRACITÉ | D44: =J44 ->  | E44: =CHOOSE(I44,"Libellé du critère quand il sera choisi",'Guide d''utilisation'!$B$17,'Guide d''utilisation'!$B$18,'Guide d''utilisation'!$B$19,'Guide d''utilisation'!$B$20,,) -> Libellé du critère quand il sera choisi | G44: =G43+1 -> 24 | H44: =C44 -> Choix de VÉRACITÉ | I44: =IFERROR((VLOOKUP(C44,'Guide d''utilisation'!$M$16:$N$20,2)),"") -> 1 | J44: =IFERROR(CHOOSE(I44,"",'Guide d''utilisation'!$E$17,'Guide d''utilisation'!$E$18,'Guide d''utilisation'!$E$19,'Guide d''utilisation'!$E$20,),"") ->  | K44: =1/COUNTA($B$43:$B$46) -> 0.25 | L44: =IFERROR(J44*K44,"") -> 
A45: =CONCATENATE("cr ",MID(A44,3,4)+1) -> cr 25 | B45: Les actions sont intégrées et mises en oeuvre dans les procédures SGDA | C45: Choix de VÉRACITÉ | D45: =J45 ->  | E45: =CHOOSE(I45,"Libellé du critère quand il sera choisi",'Guide d''utilisation'!$B$17,'Guide d''utilisation'!$B$18,'Guide d''utilisation'!$B$19,'Guide d''utilisation'!$B$20,,) -> Libellé du critère quand il sera choisi | G45: =G44+1 -> 25 | H45: =C45 -> Choix de VÉRACITÉ | I45: =IFERROR((VLOOKUP(C45,'Guide d''utilisation'!$M$16:$N$20,2)),"") -> 1 | J45: =IFERROR(CHOOSE(I45,"",'Guide d''utilisation'!$E$17,'Guide d''utilisation'!$E$18,'Guide d''utilisation'!$E$19,'Guide d''utilisation'!$E$20,),"") ->  | K45: =1/COUNTA($B$43:$B$46) -> 0.25 | L45: =IFERROR(J45*K45,"") -> 
A46: =CONCATENATE("cr ",MID(A45,3,4)+1) -> cr 26 | B46: L'efficacité de ces actions au sein des processus du SGDA est évaluée | C46: Choix de VÉRACITÉ | D46: =J46 ->  | E46: =CHOOSE(I46,"Libellé du critère quand il sera choisi",'Guide d''utilisation'!$B$17,'Guide d''utilisation'!$B$18,'Guide d''utilisation'!$B$19,'Guide d''utilisation'!$B$20,,) -> Libellé du critère quand il sera choisi | G46: =G45+1 -> 26 | H46: =C46 -> Choix de VÉRACITÉ | I46: =IFERROR((VLOOKUP(C46,'Guide d''utilisation'!$M$16:$N$20,2)),"") -> 1 | J46: =IFERROR(CHOOSE(I46,"",'Guide d''utilisation'!$E$17,'Guide d''utilisation'!$E$18,'Guide d''utilisation'!$E$19,'Guide d''utilisation'!$E$20,),"") ->  | K46: =1/COUNTA($B$43:$B$46) -> 0.25 | L46: =IFERROR(J46*K46,"") -> 
A47: 6.2 | B47: Objectifs à atteindre pour les documents d'activité et moyens à mettre en œuvre | C47: =M47 -> Insuffisant | D47: =L47 -> 0 | E47: =IFERROR(IF(D47<='Guide d''utilisation'!$G$17,'Guide d''utilisation'!$I$17,IF(D47<='Guide d''utilisation'!$G$18,'Guide d''utilisation'!$I$18,IF(D47<='Guide d''utilisation'!$G$19,'Guide d''utilisation'!$I$19,'Guide d''utilisation'!$I$20))),"") -> Conformité de niveau 1 : Il est nécessaire de formaliser les activités réalisées. | H47: Sous-Article | J47: vérifier si Somme = 1 => | K47: =SUM(K48:K54) -> 1 | L47: =IFERROR(SUM(L48:L54),"") -> 0 | M47: =IFERROR(IF(L47<='Guide d''utilisation'!$G$17,'Guide d''utilisation'!$H$17,IF(L47<='Guide d''utilisation'!$G$18,'Guide d''utilisation'!$H$18,IF(L47<='Guide d''utilisation'!$G$19,'Guide d''utilisation'!$H$19,'Guide d''utilisation'!$H$20))),"") -> Insuffisant | N47: =1/COUNTA($M$42:$M$54) -> 0.5 | O47: =N47*L47 -> 0
A48: =CONCATENATE("cr ",MID(A46,3,4)+1) -> cr 27 | B48: La direction s'assure que les objectifs à atteindre pour les documents d'activité sont établis et communiqués aux personnes occupant des fonctions et niveaux pertinents au sein de l'organisme | C48: Choix de VÉRACITÉ | D48: =J48 ->  | E48: =CHOOSE(I48,"Libellé du critère quand il sera choisi",'Guide d''utilisation'!$B$17,'Guide d''utilisation'!$B$18,'Guide d''utilisation'!$B$19,'Guide d''utilisation'!$B$20,,) -> Libellé du critère quand il sera choisi | G48: =G46+1 -> 27 | H48: =C48 -> Choix de VÉRACITÉ | I48: =IFERROR((VLOOKUP(C48,'Guide d''utilisation'!$M$16:$N$20,2)),"") -> 1 | J48: =IFERROR(CHOOSE(I48,"",'Guide d''utilisation'!$E$17,'Guide d''utilisation'!$E$18,'Guide d''utilisation'!$E$19,'Guide d''utilisation'!$E$20,),"") ->  | K48: =1/COUNTA($B$48:$B$54) -> 0.1428571429 | L48: =IFERROR(J48*K48,"") -> 
A49: =CONCATENATE("cr ",MID(A48,3,4)+1) -> cr 28 | B49: Les objectifs sont mesurables et cohérents avec la politique relative aux documents | C49: Choix de VÉRACITÉ | D49: =J49 ->  | E49: =CHOOSE(I49,"Libellé du critère quand il sera choisi",'Guide d''utilisation'!$B$17,'Guide d''utilisation'!$B$18,'Guide d''utilisation'!$B$19,'Guide d''utilisation'!$B$20,,) -> Libellé du critère quand il sera choisi | G49: =G48+1 -> 28 | H49: =C49 -> Choix de VÉRACITÉ | I49: =IFERROR((VLOOKUP(C49,'Guide d''utilisation'!$M$16:$N$20,2)),"") -> 1 | J49: =IFERROR(CHOOSE(I49,"",'Guide d''utilisation'!$E$17,'Guide d''utilisation'!$E$18,'Guide d''utilisation'!$E$19,'Guide d''utilisation'!$E$20,),"") ->  | K49: =1/COUNTA($B$48:$B$54) -> 0.1428571429 | L49: =IFERROR(J49*K49,"") -> 
A50: =CONCATENATE("cr ",MID(A49,3,4)+1) -> cr 29 | B50: Les objectifs sont surveillés, tenus à jour et communiqués | C50: Choix de VÉRACITÉ | D50: =J50 ->  | E50: =CHOOSE(I50,"Libellé du critère quand il sera choisi",'Guide d''utilisation'!$B$17,'Guide d''utilisation'!$B$18,'Guide d''utilisation'!$B$19,'Guide d''utilisation'!$B$20,,) -> Libellé du critère quand il sera choisi | G50: =G49+1 -> 29 | H50: =C50 -> Choix de VÉRACITÉ | I50: =IFERROR((VLOOKUP(C50,'Guide d''utilisation'!$M$16:$N$20,2)),"") -> 1 | J50: =IFERROR(CHOOSE(I50,"",'Guide d''utilisation'!$E$17,'Guide d''utilisation'!$E$18,'Guide d''utilisation'!$E$19,'Guide d''utilisation'!$E$20,),"") ->  | K50: =1/COUNTA($B$48:$B$54) -> 0.1428571429 | L50: =IFERROR(J50*K50,"") -> 
A51: =CONCATENATE("cr ",MID(A50,3,4)+1) -> cr 30 | B51: Les objectifs découlent d'une analyse des activités de l'organisme | C51: Choix de VÉRACITÉ | D51: =J51 ->  | E51: =CHOOSE(I51,"Libellé du critère quand il sera choisi",'Guide d''utilisation'!$B$17,'Guide d''utilisation'!$B$18,'Guide d''utilisation'!$B$19,'Guide d''utilisation'!$B$20,,) -> Libellé du critère quand il sera choisi | G51: =G50+1 -> 30 | H51: =C51 -> Choix de VÉRACITÉ | I51: =IFERROR((VLOOKUP(C51,'Guide d''utilisation'!$M$16:$N$20,2)),"") -> 1 | J51: =IFERROR(CHOOSE(I51,"",'Guide d''utilisation'!$E$17,'Guide d''utilisation'!$E$18,'Guide d''utilisation'!$E$19,'Guide d''utilisation'!$E$20,),"") ->  | K51: =1/COUNTA($B$48:$B$54) -> 0.1428571429 | L51: =IFERROR(J51*K51,"") -> 
A52: =CONCATENATE("cr ",MID(A51,3,4)+1) -> cr 31 | B52: Les objectifs définissent le périmètre d'une application optimale pour la création de documents d'activité | C52: Choix de VÉRACITÉ | D52: =J52 ->  | E52: =CHOOSE(I52,"Libellé du critère quand il sera choisi",'Guide d''utilisation'!$B$17,'Guide d''utilisation'!$B$18,'Guide d''utilisation'!$B$19,'Guide d''utilisation'!$B$20,,) -> Libellé du critère quand il sera choisi | G52: =G51+1 -> 31 | H52: =C52 -> Choix de VÉRACITÉ | I52: =IFERROR((VLOOKUP(C52,'Guide d''utilisation'!$M$16:$N$20,2)),"") -> 1 | J52: =IFERROR(CHOOSE(I52,"",'Guide d''utilisation'!$E$17,'Guide d''utilisation'!$E$18,'Guide d''utilisation'!$E$19,'Guide d''utilisation'!$E$20,),"") ->  | K52: =1/COUNTA($B$48:$B$54) -> 0.1428571429 | L52: =IFERROR(J52*K52,"") -> 
A53: cr 32 | B53: L'organisme conserve des informations documentées sur les cibles | C53: Choix de VÉRACITÉ | E53: =CHOOSE(I53,"Libellé du critère quand il sera choisi",'Guide d''utilisation'!$B$17,'Guide d''utilisation'!$B$18,'Guide d''utilisation'!$B$19,'Guide d''utilisation'!$B$20,,) -> Libellé du critère quand il sera choisi | G53: 32 | H53: Choix de VÉRACITÉ | I53: =IFERROR((VLOOKUP(C53,'Guide d''utilisation'!$M$16:$N$20,2)),"") -> 1 | J53: =IFERROR(CHOOSE(I53,"",'Guide d''utilisation'!$E$17,'Guide d''utilisation'!$E$18,'Guide d''utilisation'!$E$19,'Guide d''utilisation'!$E$20,),"") ->  | K53: 0.1428571429
A54: cr 33 | B54: Pour atteindre les objectifs, l'organisme détermine le responsable, les actions, les ressources, la date de fin de réalisation et les modalités d'évaluation des résultats | C54: Choix de VÉRACITÉ | E54: =CHOOSE(I54,"Libellé du critère quand il sera choisi",'Guide d''utilisation'!$B$17,'Guide d''utilisation'!$B$18,'Guide d''utilisation'!$B$19,'Guide d''utilisation'!$B$20,,) -> Libellé du critère quand il sera choisi | G54: 33 | H54: Choix de VÉRACITÉ | I54: =IFERROR((VLOOKUP(C54,'Guide d''utilisation'!$M$16:$N$20,2)),"") -> 1 | J54: =IFERROR(CHOOSE(I54,"",'Guide d''utilisation'!$E$17,'Guide d''utilisation'!$E$18,'Guide d''utilisation'!$E$19,'Guide d''utilisation'!$E$20,),"") ->  | K54: 0.1428571429
A55: Art. 7 | B55: Support | C55: =P55 -> Insuffisant | D55: =O55 -> 0 | E55: =IFERROR(IF(D55<='Guide d''utilisation'!$G$17,'Guide d''utilisation'!$I$17,IF(D55<='Guide d''utilisation'!$G$18,'Guide d''utilisation'!$I$18,IF(D55<='Guide d''utilisation'!$G$19,'Guide d''utilisation'!$I$19,'Guide d''utilisation'!$I$20))),"") -> Conformité de niveau 1 : Il est nécessaire de formaliser les activités réalisées. | H55: Article | M55: vérifier si Somme = 1 => | N55: =SUM(N56:N84) -> 1 | O55: =IFERROR(SUM(O56:O84),"") -> 0 | P55: =IFERROR(IF(O55<='Guide d''utilisation'!$G$17,'Guide d''utilisation'!$H$17,IF(O55<='Guide d''utilisation'!$G$18,'Guide d''utilisation'!$H$18,IF(O55<='Guide d''utilisation'!$G$19,'Guide d''utilisation'!$H$19,'Guide d''utilisation'!$H$20))),"") -> Insuffisant | Q55: =1/7 -> 0.1428571429 | R55: =O55*Q55 -> 0
A56: 7.1 | B56: Ressources | C56: =M56 -> Insuffisant | D56: =L56 -> 0 | E56: =IFERROR(IF(D56<='Guide d''utilisation'!$G$17,'Guide d''utilisation'!$I$17,IF(D56<='Guide d''utilisation'!$G$18,'Guide d''utilisation'!$I$18,IF(D56<='Guide d''utilisation'!$G$19,'Guide d''utilisation'!$I$19,'Guide d''utilisation'!$I$20))),"") -> Conformité de niveau 1 : Il est nécessaire de formaliser les activités réalisées. | H56: Sous-Article | J56: vérifier si Somme = 1 => | K56: =SUM(K57:K60) -> 1 | L56: =IFERROR(SUM(L57:L60),"") -> 0 | M56: =IFERROR(IF(L56<='Guide d''utilisation'!$G$17,'Guide d''utilisation'!$H$17,IF(L56<='Guide d''utilisation'!$G$18,'Guide d''utilisation'!$H$18,IF(L56<='Guide d''utilisation'!$G$19,'Guide d''utilisation'!$H$19,'Guide d''utilisation'!$H$20))),"") -> Insuffisant | N56: =1/COUNTA($M$56:$M$84) -> 0.2 | O56: =N56*L56 -> 0
A57: =CONCATENATE("cr ",MID(A54,3,4)+1) -> cr 34 | B57: La direction alloue et maintient les ressources nécessaires au SGDA | C57: Choix de VÉRACITÉ | D57: =J57 ->  | E57: =CHOOSE(I57,"Libellé du critère quand il sera choisi",'Guide d''utilisation'!$B$17,'Guide d''utilisation'!$B$18,'Guide d''utilisation'!$B$19,'Guide d''utilisation'!$B$20,,) -> Libellé du critère quand il sera choisi | G57: =G54+1 -> 34 | H57: =C57 -> Choix de VÉRACITÉ | I57: =IFERROR((VLOOKUP(C57,'Guide d''utilisation'!$M$16:$N$20,2)),"") -> 1 | J57: =IFERROR(CHOOSE(I57,"",'Guide d''utilisation'!$E$17,'Guide d''utilisation'!$E$18,'Guide d''utilisation'!$E$19,'Guide d''utilisation'!$E$20,),"") ->  | K57: =1/COUNTA($B$57:$B$60) -> 0.25 | L57: =IFERROR(J57*K57,"") -> 
A58: =CONCATENATE("cr ",MID(A57,3,4)+1) -> cr 35 | B58: La direction attribue les responsabilités aux personnes ayant les compétences nécessaires | C58: Choix de VÉRACITÉ | E58: =CHOOSE(I58,"Libellé du critère quand il sera choisi",'Guide d''utilisation'!$B$17,'Guide d''utilisation'!$B$18,'Guide d''utilisation'!$B$19,'Guide d''utilisation'!$B$20,,) -> Libellé du critère quand il sera choisi | G58: =G57+1 -> 35 | H58: Choix de VÉRACITÉ | I58: =IFERROR((VLOOKUP(C58,'Guide d''utilisation'!$M$16:$N$20,2)),"") -> 1 | J58: =IFERROR(CHOOSE(I58,"",'Guide d''utilisation'!$E$17,'Guide d''utilisation'!$E$18,'Guide d''utilisation'!$E$19,'Guide d''utilisation'!$E$20,),"") ->  | K58: =1/COUNTA($B$57:$B$60) -> 0.25
A59: =CONCATENATE("cr ",MID(A58,3,4)+1) -> cr 36 | B59: La direction revoie périodiquement les compétences et la formation des personnels responsables au sein du SGDA | C59: Choix de VÉRACITÉ | E59: =CHOOSE(I59,"Libellé du critère quand il sera choisi",'Guide d''utilisation'!$B$17,'Guide d''utilisation'!$B$18,'Guide d''utilisation'!$B$19,'Guide d''utilisation'!$B$20,,) -> Libellé du critère quand il sera choisi | G59: =G58+1 -> 36 | H59: Choix de VÉRACITÉ | I59: =IFERROR((VLOOKUP(C59,'Guide d''utilisation'!$M$16:$N$20,2)),"") -> 1 | J59: =IFERROR(CHOOSE(I59,"",'Guide d''utilisation'!$E$17,'Guide d''utilisation'!$E$18,'Guide d''utilisation'!$E$19,'Guide d''utilisation'!$E$20,),"") ->  | K59: =1/COUNTA($B$57:$B$60) -> 0.25
A60: cr 37 | B60: La direction assure la maintenance et la durabilité des ressources et de l'infrastructure technique | C60: Choix de VÉRACITÉ | E60: =CHOOSE(I60,"Libellé du critère quand il sera choisi",'Guide d''utilisation'!$B$17,'Guide d''utilisation'!$B$18,'Guide d''utilisation'!$B$19,'Guide d''utilisation'!$B$20,,) -> Libellé du critère quand il sera choisi | G60: 37 | H60: Choix de VÉRACITÉ | I60: =IFERROR((VLOOKUP(C60,'Guide d''utilisation'!$M$16:$N$20,2)),"") -> 1 | J60: =IFERROR(CHOOSE(I60,"",'Guide d''utilisation'!$E$17,'Guide d''utilisation'!$E$18,'Guide d''utilisation'!$E$19,'Guide d''utilisation'!$E$20,),"") ->  | K60: =1/COUNTA($B$57:$B$60) -> 0.25
A61: 7.2 | B61: Compétences | C61: =M61 -> Insuffisant | D61: =L61 -> 0 | E61: =IFERROR(IF(D61<='Guide d''utilisation'!$G$17,'Guide d''utilisation'!$I$17,IF(D61<='Guide d''utilisation'!$G$18,'Guide d''utilisation'!$I$18,IF(D61<='Guide d''utilisation'!$G$19,'Guide d''utilisation'!$I$19,'Guide d''utilisation'!$I$20))),"") -> Conformité de niveau 1 : Il est nécessaire de formaliser les activités réalisées. | H61: Sous-Article | J61: vérifier si Somme = 1 => | K61: =SUM(K62:K65) -> 1 | L61: =IFERROR(SUM(L62:L65),"") -> 0 | M61: =IFERROR(IF(L61<='Guide d''utilisation'!$G$17,'Guide d''utilisation'!$H$17,IF(L61<='Guide d''utilisation'!$G$18,'Guide d''utilisation'!$H$18,IF(L61<='Guide d''utilisation'!$G$19,'Guide d''utilisation'!$H$19,'Guide d''utilisation'!$H$20))),"") -> Insuffisant | N61: =1/COUNTA($M$56:$M$84) -> 0.2 | O61: =N61*L61 -> 0
A62: =CONCATENATE("cr ",MID(A60,3,4)+1) -> cr 38 | B62: Les compétences nécessaires des personnes dont le travail a une incidence sur les processus liés aux documents d'activité et les systèmes documentaires sont déterminées | C62: Choix de VÉRACITÉ | D62: =J62 ->  | E62: =CHOOSE(I62,"Libellé du critère quand il sera choisi",'Guide d''utilisation'!$B$17,'Guide d''utilisation'!$B$18,'Guide d''utilisation'!$B$19,'Guide d''utilisation'!$B$20,,) -> Libellé du critère quand il sera choisi | G62: =G60+1 -> 38 | H62: =C62 -> Choix de VÉRACITÉ | I62: =IFERROR((VLOOKUP(C62,'Guide d''utilisation'!$M$16:$N$20,2)),"") -> 1 | J62: =IFERROR(CHOOSE(I62,"",'Guide d''utilisation'!$E$17,'Guide d''utilisation'!$E$18,'Guide d''utilisation'!$E$19,'Guide d''utilisation'!$E$20,),"") ->  | K62: =1/COUNTA($B$62:$B$65) -> 0.25 | L62: =IFERROR(J62*K62,"") -> 
A63: =CONCATENATE("cr ",MID(A62,3,4)+1) -> cr 39 | B63: Les compétences du personnel sont évaluées sur la base d'une formation ou d'une expérience appropriée | C63: Choix de VÉRACITÉ | D63: =J63 ->  | E63: =CHOOSE(I63,"Libellé du critère quand il sera choisi",'Guide d''utilisation'!$B$17,'Guide d''utilisation'!$B$18,'Guide d''utilisation'!$B$19,'Guide d''utilisation'!$B$20,,) -> Libellé du critère quand il sera choisi | G63: =G62+1 -> 39 | H63: =C63 -> Choix de VÉRACITÉ | I63: =IFERROR((VLOOKUP(C63,'Guide d''utilisation'!$M$16:$N$20,2)),"") -> 1 | J63: =IFERROR(CHOOSE(I63,"",'Guide d''utilisation'!$E$17,'Guide d''utilisation'!$E$18,'Guide d''utilisation'!$E$19,'Guide d''utilisation'!$E$20,),"") ->  | K63: =1/COUNTA($B$62:$B$65) -> 0.25 | L63: =IFERROR(J63*K63,"") -> 
A64: =CONCATENATE("cr ",MID(A63,3,4)+1) -> cr 40 | B64: L'organisme met en place et évalue l'efficacité des actions pour acquérir ou renforcer les compétences nécessaires au bon fonctionnement du SGDA | C64: Choix de VÉRACITÉ | D64: =J64 ->  | E64: =CHOOSE(I64,"Libellé du critère quand il sera choisi",'Guide d''utilisation'!$B$17,'Guide d''utilisation'!$B$18,'Guide d''utilisation'!$B$19,'Guide d''utilisation'!$B$20,,) -> Libellé du critère quand il sera choisi | G64: =G63+1 -> 40 | H64: =C64 -> Choix de VÉRACITÉ | I64: =IFERROR((VLOOKUP(C64,'Guide d''utilisation'!$M$16:$N$20,2)),"") -> 1 | J64: =IFERROR(CHOOSE(I64,"",'Guide d''utilisation'!$E$17,'Guide d''utilisation'!$E$18,'Guide d''utilisation'!$E$19,'Guide d''utilisation'!$E$20,),"") ->  | K64: =1/COUNTA($B$62:$B$65) -> 0.25 | L64: =IFERROR(J64*K64,"") -> 
A65: =CONCATENATE("cr ",MID(A64,3,4)+1) -> cr 41 | B65: Les informations documentées sur les compétences du personnel sont conservées | C65: Choix de VÉRACITÉ | D65: =J65 ->  | E65: =CHOOSE(I65,"Libellé du critère quand il sera choisi",'Guide d''utilisation'!$B$17,'Guide d''utilisation'!$B$18,'Guide d''utilisation'!$B$19,'Guide d''utilisation'!$B$20,,) -> Libellé du critère quand il sera choisi | G65: =G64+1 -> 41 | H65: =C65 -> Choix de VÉRACITÉ | I65: =IFERROR((VLOOKUP(C65,'Guide d''utilisation'!$M$16:$N$20,2)),"") -> 1 | J65: =IFERROR(CHOOSE(I65,"",'Guide d''utilisation'!$E$17,'Guide d''utilisation'!$E$18,'Guide d''utilisation'!$E$19,'Guide d''utilisation'!$E$20,),"") ->  | K65: =1/COUNTA($B$62:$B$65) -> 0.25 | L65: =IFERROR(J65*K65,"") -> 
A66: 7.3 | B66: Sensibilisation et formation | C66: =M66 -> Insuffisant | D66: =L66 -> 0 | E66: =IFERROR(IF(D66<='Guide d''utilisation'!$G$17,'Guide d''utilisation'!$I$17,IF(D66<='Guide d''utilisation'!$G$18,'Guide d''utilisation'!$I$18,IF(D66<='Guide d''utilisation'!$G$19,'Guide d''utilisation'!$I$19,'Guide d''utilisation'!$I$20))),"") -> Conformité de niveau 1 : Il est nécessaire de formaliser les activités réalisées. | H66: Sous-Article | J66: vérifier si Somme = 1 => | K66: =SUM(K67:K72) -> 1 | L66: =IFERROR(SUM(L67:L72),"") -> 0 | M66: =IFERROR(IF(L66<='Guide d''utilisation'!$G$17,'Guide d''utilisation'!$H$17,IF(L66<='Guide d''utilisation'!$G$18,'Guide d''utilisation'!$H$18,IF(L66<='Guide d''utilisation'!$G$19,'Guide d''utilisation'!$H$19,'Guide d''utilisation'!$H$20))),"") -> Insuffisant | N66: =1/COUNTA($M$56:$M$84) -> 0.2 | O66: =N66*L66 -> 0
A67: =CONCATENATE("cr ",MID(A65,3,4)+1) -> cr 42 | B67: L'organisme s'assure que le personnel est conscient de l'importance de son activité, de sa contribution individuelle à la réalisation des objectifsdu SGDA et dans la satisfaction des exigences du SGDA | C67: Choix de VÉRACITÉ | D67: =J67 ->  | E67: =CHOOSE(I67,"Libellé du critère quand il sera choisi",'Guide d''utilisation'!$B$17,'Guide d''utilisation'!$B$18,'Guide d''utilisation'!$B$19,'Guide d''utilisation'!$B$20,,) -> Libellé du critère quand il sera choisi | G67: =G65+1 -> 42 | H67: =C67 -> Choix de VÉRACITÉ | I67: =IFERROR((VLOOKUP(C67,'Guide d''utilisation'!$M$16:$N$20,2)),"") -> 1 | J67: =IFERROR(CHOOSE(I67,"",'Guide d''utilisation'!$E$17,'Guide d''utilisation'!$E$18,'Guide d''utilisation'!$E$19,'Guide d''utilisation'!$E$20,),"") ->  | K67: =1/COUNTA($B$67:$B$72) -> 0.1666666667 | L67: =IFERROR(J67*K67,"") -> 
A68: =CONCATENATE("cr ",MID(A67,3,4)+1) -> cr 43 | B68: L'organisme s'assure que le personnel est sensibilisé à la politique, aux procédures du SGDA et aux exigences du système de management | C68: Choix de VÉRACITÉ | D68: =J68 ->  | E68: =CHOOSE(I68,"Libellé du critère quand il sera choisi",'Guide d''utilisation'!$B$17,'Guide d''utilisation'!$B$18,'Guide d''utilisation'!$B$19,'Guide d''utilisation'!$B$20,,) -> Libellé du critère quand il sera choisi | G68: =G67+1 -> 43 | H68: =C68 -> Choix de VÉRACITÉ | I68: =IFERROR((VLOOKUP(C68,'Guide d''utilisation'!$M$16:$N$20,2)),"") -> 1 | J68: =IFERROR(CHOOSE(I68,"",'Guide d''utilisation'!$E$17,'Guide d''utilisation'!$E$18,'Guide d''utilisation'!$E$19,'Guide d''utilisation'!$E$20,),"") ->  | K68: =1/COUNTA($B$67:$B$72) -> 0.1666666667 | L68: =IFERROR(J68*K68,"") -> 
A69: =CONCATENATE("cr ",MID(A68,3,4)+1) -> cr 44 | B69: L'organisme s'assure que son personnel est conscient des points critiques, des impacts du SGDA sur le travail des employés et aussi de ses avantages sur leurs performances individuelles | C69: Choix de VÉRACITÉ | D69: =J69 ->  | E69: =CHOOSE(I69,"Libellé du critère quand il sera choisi",'Guide d''utilisation'!$B$17,'Guide d''utilisation'!$B$18,'Guide d''utilisation'!$B$19,'Guide d''utilisation'!$B$20,,) -> Libellé du critère quand il sera choisi | G69: =G68+1 -> 44 | H69: =C69 -> Choix de VÉRACITÉ | I69: =IFERROR((VLOOKUP(C69,'Guide d''utilisation'!$M$16:$N$20,2)),"") -> 1 | J69: =IFERROR(CHOOSE(I69,"",'Guide d''utilisation'!$E$17,'Guide d''utilisation'!$E$18,'Guide d''utilisation'!$E$19,'Guide d''utilisation'!$E$20,),"") ->  | K69: =1/COUNTA($B$67:$B$72) -> 0.1666666667 | L69: =IFERROR(J69*K69,"") -> 
A70: cr 45 | B70: Le personnel est conscient des conséquences de tout écart par rapport aux procédures spécifiées | C70: Choix de VÉRACITÉ | E70: =CHOOSE(I70,"Libellé du critère quand il sera choisi",'Guide d''utilisation'!$B$17,'Guide d''utilisation'!$B$18,'Guide d''utilisation'!$B$19,'Guide d''utilisation'!$B$20,,) -> Libellé du critère quand il sera choisi | G70: 45 | H70: Choix de VÉRACITÉ | I70: =IFERROR((VLOOKUP(C70,'Guide d''utilisation'!$M$16:$N$20,2)),"") -> 1 | J70: =IFERROR(CHOOSE(I70,"",'Guide d''utilisation'!$E$17,'Guide d''utilisation'!$E$18,'Guide d''utilisation'!$E$19,'Guide d''utilisation'!$E$20,),"") ->  | K70: 0.1666666667
A71: cr 46 | B71: L'organisme évalue, idenditifie et intègre les compétences de son personnel afin d'établir des programmes de formation sur la création, le contrôle de SGDA, les exigences et les pratiques de gestion des documents d'activité | C71: Choix de VÉRACITÉ | E71: =CHOOSE(I71,"Libellé du critère quand il sera choisi",'Guide d''utilisation'!$B$17,'Guide d''utilisation'!$B$18,'Guide d''utilisation'!$B$19,'Guide d''utilisation'!$B$20,,) -> Libellé du critère quand il sera choisi | G71: 46 | H71: Choix de VÉRACITÉ | I71: =IFERROR((VLOOKUP(C71,'Guide d''utilisation'!$M$16:$N$20,2)),"") -> 1 | J71: =IFERROR(CHOOSE(I71,"",'Guide d''utilisation'!$E$17,'Guide d''utilisation'!$E$18,'Guide d''utilisation'!$E$19,'Guide d''utilisation'!$E$20,),"") ->  | K71: 0.1666666667
A72: cr 47 | B72: Le personnel est sensibilisé aux effets bénéfiques d'une amélioration des performances et aux répercussions d'un non respect des exigences du SGDA | C72: Choix de VÉRACITÉ | E72: =CHOOSE(I72,"Libellé du critère quand il sera choisi",'Guide d''utilisation'!$B$17,'Guide d''utilisation'!$B$18,'Guide d''utilisation'!$B$19,'Guide d''utilisation'!$B$20,,) -> Libellé du critère quand il sera choisi | G72: 47 | H72: Choix de VÉRACITÉ | I72: =IFERROR((VLOOKUP(C72,'Guide d''utilisation'!$M$16:$N$20,2)),"") -> 1 | J72: =IFERROR(CHOOSE(I72,"",'Guide d''utilisation'!$E$17,'Guide d''utilisation'!$E$18,'Guide d''utilisation'!$E$19,'Guide d''utilisation'!$E$20,),"") ->  | K72: 0.1666666667
A73: 7.4 | B73: Communication | C73: =M73 -> Insuffisant | D73: =L73 -> 0 | E73: =IFERROR(IF(D73<='Guide d''utilisation'!$G$17,'Guide d''utilisation'!$I$17,IF(D73<='Guide d''utilisation'!$G$18,'Guide d''utilisation'!$I$18,IF(D73<='Guide d''utilisation'!$G$19,'Guide d''utilisation'!$I$19,'Guide d''utilisation'!$I$20))),"") -> Conformité de niveau 1 : Il est nécessaire de formaliser les activités réalisées. | H73: Sous-Article | J73: vérifier si Somme = 1 => | K73: =SUM(K74:K76) -> 1 | L73: =IFERROR(SUM(L74:L76),"") -> 0 | M73: =IFERROR(IF(L73<='Guide d''utilisation'!$G$17,'Guide d''utilisation'!$H$17,IF(L73<='Guide d''utilisation'!$G$18,'Guide d''utilisation'!$H$18,IF(L73<='Guide d''utilisation'!$G$19,'Guide d''utilisation'!$H$19,'Guide d''utilisation'!$H$20))),"") -> Insuffisant | N73: =1/COUNTA($M$56:$M$84) -> 0.2 | O73: =N73*L73 -> 0
A74: =CONCATENATE("cr ",MID(A72,3,4)+1) -> cr 48 | B74: Des procédures de communication interne sur le SGDA, la politique et les objectifs de l'organisme concernant les documents d'activité sont établies, mises en œuvre, documentées et maintenues | C74: Choix de VÉRACITÉ | D74: =J74 ->  | E74: =CHOOSE(I74,"Libellé du critère quand il sera choisi",'Guide d''utilisation'!$B$17,'Guide d''utilisation'!$B$18,'Guide d''utilisation'!$B$19,'Guide d''utilisation'!$B$20,,) -> Libellé du critère quand il sera choisi | G74: =G72+1 -> 48 | H74: =C74 -> Choix de VÉRACITÉ | I74: =IFERROR((VLOOKUP(C74,'Guide d''utilisation'!$M$16:$N$20,2)),"") -> 1 | J74: =IFERROR(CHOOSE(I74,"",'Guide d''utilisation'!$E$17,'Guide d''utilisation'!$E$18,'Guide d''utilisation'!$E$19,'Guide d''utilisation'!$E$20,),"") ->  | K74: =1/COUNTA($B$74:$B$76) -> 0.3333333333 | L74: =IFERROR(J74*K74,"") -> 
A75: =CONCATENATE("cr ",MID(A74,3,4)+1) -> cr 49 | B75: Les autorités d'accés à la documentation de communication interne sont mentionnées | C75: Choix de VÉRACITÉ | D75: =J75 ->  | E75: =CHOOSE(I75,"Libellé du critère quand il sera choisi",'Guide d''utilisation'!$B$17,'Guide d''utilisation'!$B$18,'Guide d''utilisation'!$B$19,'Guide d''utilisation'!$B$20,,) -> Libellé du critère quand il sera choisi | G75: =G74+1 -> 49 | H75: =C75 -> Choix de VÉRACITÉ | I75: =IFERROR((VLOOKUP(C75,'Guide d''utilisation'!$M$16:$N$20,2)),"") -> 1 | J75: =IFERROR(CHOOSE(I75,"",'Guide d''utilisation'!$E$17,'Guide d''utilisation'!$E$18,'Guide d''utilisation'!$E$19,'Guide d''utilisation'!$E$20,),"") ->  | K75: =1/COUNTA($B$74:$B$76) -> 0.3333333333 | L75: =IFERROR(J75*K75,"") -> 
A76: =CONCATENATE("cr ",MID(A75,3,4)+1) -> cr 50 | B76: Les modalités de communication externe sont déterminées | C76: Choix de VÉRACITÉ | D76: =J76 ->  | E76: =CHOOSE(I76,"Libellé du critère quand il sera choisi",'Guide d''utilisation'!$B$17,'Guide d''utilisation'!$B$18,'Guide d''utilisation'!$B$19,'Guide d''utilisation'!$B$20,,) -> Libellé du critère quand il sera choisi | G76: =G75+1 -> 50 | H76: =C76 -> Choix de VÉRACITÉ | I76: =IFERROR((VLOOKUP(C76,'Guide d''utilisation'!$M$16:$N$20,2)),"") -> 1 | J76: =IFERROR(CHOOSE(I76,"",'Guide d''utilisation'!$E$17,'Guide d''utilisation'!$E$18,'Guide d''utilisation'!$E$19,'Guide d''utilisation'!$E$20,),"") ->  | K76: =1/COUNTA($B$74:$B$76) -> 0.3333333333 | L76: =IFERROR(J76*K76,"") -> 
A77: 7.5 | B77: Documentation | C77: =M77 -> Insuffisant | D77: =L77 -> 0 | E77: =IFERROR(IF(D77<='Guide d''utilisation'!$G$17,'Guide d''utilisation'!$I$17,IF(D77<='Guide d''utilisation'!$G$18,'Guide d''utilisation'!$I$18,IF(D77<='Guide d''utilisation'!$G$19,'Guide d''utilisation'!$I$19,'Guide d''utilisation'!$I$20))),"") -> Conformité de niveau 1 : Il est nécessaire de formaliser les activités réalisées. | H77: Sous-Article | J77: vérifier si Somme = 1 => | K77: =SUM(K78:K84) -> 1 | L77: =IFERROR(SUM(L78:L84),"") -> 0 | M77: =IFERROR(IF(L77<='Guide d''utilisation'!$G$17,'Guide d''utilisation'!$H$17,IF(L77<='Guide d''utilisation'!$G$18,'Guide d''utilisation'!$H$18,IF(L77<='Guide d''utilisation'!$G$19,'Guide d''utilisation'!$H$19,'Guide d''utilisation'!$H$20))),"") -> Insuffisant | N77: =1/COUNTA($M$56:$M$84) -> 0.2 | O77: =N77*L77 -> 0
A78: =CONCATENATE("cr ",MID(A76,3,4)+1) -> cr 51 | B78: La documentation comprend des relevés de décision concernant le domaine d'application, la politique, les objectifs, les cibles, l'interdépendance et les relations entre le SGDA et les autres systèmes de management, les procédures documentées exigées par la norme et celles nécessaires à son efficacité | C78: Choix de VÉRACITÉ | D78: =J78 ->  | E78: =CHOOSE(I78,"Libellé du critère quand il sera choisi",'Guide d''utilisation'!$B$17,'Guide d''utilisation'!$B$18,'Guide d''utilisation'!$B$19,'Guide d''utilisation'!$B$20,,) -> Libellé du critère quand il sera choisi | G78: =G76+1 -> 51 | H78: =C78 -> Choix de VÉRACITÉ | I78: =IFERROR((VLOOKUP(C78,'Guide d''utilisation'!$M$16:$N$20,2)),"") -> 1 | J78: =IFERROR(CHOOSE(I78,"",'Guide d''utilisation'!$E$17,'Guide d''utilisation'!$E$18,'Guide d''utilisation'!$E$19,'Guide d''utilisation'!$E$20,),"") ->  | K78: =1/COUNTA($B$78:$B$84) -> 0.1428571429 | L78: =IFERROR(J78*K78,"") -> 
A79: =CONCATENATE("cr ",MID(A78,3,4)+1) -> cr 52 | B79: La documentation est identifiée et décrite de manière compréhensible | C79: Choix de VÉRACITÉ | E79: =CHOOSE(I79,"Libellé du critère quand il sera choisi",'Guide d''utilisation'!$B$17,'Guide d''utilisation'!$B$18,'Guide d''utilisation'!$B$19,'Guide d''utilisation'!$B$20,,) -> Libellé du critère quand il sera choisi | G79: =G78+1 -> 52 | H79: Choix de VÉRACITÉ | I79: =IFERROR((VLOOKUP(C79,'Guide d''utilisation'!$M$16:$N$20,2)),"") -> 1 | J79: =IFERROR(CHOOSE(I79,"",'Guide d''utilisation'!$E$17,'Guide d''utilisation'!$E$18,'Guide d''utilisation'!$E$19,'Guide d''utilisation'!$E$20,),"") ->  | K79: 0.1428571429
A80: cr 53 | B80: Le contenu de la documentation est revu , mis à jour et approuvé en termes de pertinence et d'adéquation avant sa diffusion | C80: Choix de VÉRACITÉ | E80: =CHOOSE(I80,"Libellé du critère quand il sera choisi",'Guide d''utilisation'!$B$17,'Guide d''utilisation'!$B$18,'Guide d''utilisation'!$B$19,'Guide d''utilisation'!$B$20,,) -> Libellé du critère quand il sera choisi | G80: 53 | H80: Choix de VÉRACITÉ | I80: =IFERROR((VLOOKUP(C80,'Guide d''utilisation'!$M$16:$N$20,2)),"") -> 1 | J80: =IFERROR(CHOOSE(I80,"",'Guide d''utilisation'!$E$17,'Guide d''utilisation'!$E$18,'Guide d''utilisation'!$E$19,'Guide d''utilisation'!$E$20,),"") ->  | K80: 0.1428571429
A81: cr 54 | B81: La documentation est controlée et les contrôles sont définis dans une procédure documentée | C81: Choix de VÉRACITÉ | E81: =CHOOSE(I81,"Libellé du critère quand il sera choisi",'Guide d''utilisation'!$B$17,'Guide d''utilisation'!$B$18,'Guide d''utilisation'!$B$19,'Guide d''utilisation'!$B$20,,) -> Libellé du critère quand il sera choisi | G81: 54 | H81: Choix de VÉRACITÉ | I81: =IFERROR((VLOOKUP(C81,'Guide d''utilisation'!$M$16:$N$20,2)),"") -> 1 | J81: =IFERROR(CHOOSE(I81,"",'Guide d''utilisation'!$E$17,'Guide d''utilisation'!$E$18,'Guide d''utilisation'!$E$19,'Guide d''utilisation'!$E$20,),"") ->  | K81: 0.1428571429
A82: cr 55 | B82: Les modifications de la documentation sont maitrisées et le statut de révision est identifié (contrôle des versions par exemple) | C82: Choix de VÉRACITÉ | E82: =CHOOSE(I82,"Libellé du critère quand il sera choisi",'Guide d''utilisation'!$B$17,'Guide d''utilisation'!$B$18,'Guide d''utilisation'!$B$19,'Guide d''utilisation'!$B$20,,) -> Libellé du critère quand il sera choisi | G82: 55 | H82: Choix de VÉRACITÉ | I82: =IFERROR((VLOOKUP(C82,'Guide d''utilisation'!$M$16:$N$20,2)),"") -> 1 | J82: =IFERROR(CHOOSE(I82,"",'Guide d''utilisation'!$E$17,'Guide d''utilisation'!$E$18,'Guide d''utilisation'!$E$19,'Guide d''utilisation'!$E$20,),"") ->  | K82: 0.1428571429
A83: cr 56 | B83: La gestion de la documentation est bien maîtrisée en termes d'empêcher toute utilisation fortuite d'une documentation périmée, afin de la classer pour conservation ou élimination | C83: Choix de VÉRACITÉ | E83: =CHOOSE(I83,"Libellé du critère quand il sera choisi",'Guide d''utilisation'!$B$17,'Guide d''utilisation'!$B$18,'Guide d''utilisation'!$B$19,'Guide d''utilisation'!$B$20,,) -> Libellé du critère quand il sera choisi | G83: 56 | H83: Choix de VÉRACITÉ | I83: =IFERROR((VLOOKUP(C83,'Guide d''utilisation'!$M$16:$N$20,2)),"") -> 1 | J83: =IFERROR(CHOOSE(I83,"",'Guide d''utilisation'!$E$17,'Guide d''utilisation'!$E$18,'Guide d''utilisation'!$E$19,'Guide d''utilisation'!$E$20,),"") ->  | K83: 0.1428571429
A84: cr 57 | B84: La documentation extérieure est identifiée et maitrisée | C84: Choix de VÉRACITÉ | E84: =CHOOSE(I84,"Libellé du critère quand il sera choisi",'Guide d''utilisation'!$B$17,'Guide d''utilisation'!$B$18,'Guide d''utilisation'!$B$19,'Guide d''utilisation'!$B$20,,) -> Libellé du critère quand il sera choisi | G84: 57 | H84: Choix de VÉRACITÉ | I84: =IFERROR((VLOOKUP(C84,'Guide d''utilisation'!$M$16:$N$20,2)),"") -> 1 | J84: =IFERROR(CHOOSE(I84,"",'Guide d''utilisation'!$E$17,'Guide d''utilisation'!$E$18,'Guide d''utilisation'!$E$19,'Guide d''utilisation'!$E$20,),"") ->  | K84: 0.1428571429
A85: Art. 8 | B85: Réalisation des activités opérationnelles | C85: =P85 -> Insuffisant | D85: =O85 -> 0 | E85: =IFERROR(IF(D85<='Guide d''utilisation'!$G$17,'Guide d''utilisation'!$I$17,IF(D85<='Guide d''utilisation'!$G$18,'Guide d''utilisation'!$I$18,IF(D85<='Guide d''utilisation'!$G$19,'Guide d''utilisation'!$I$19,'Guide d''utilisation'!$I$20))),"") -> Conformité de niveau 1 : Il est nécessaire de formaliser les activités réalisées. | H85: Article | M85: vérifier si Somme = 1 => | N85: =SUM(N86:N102) -> 1 | O85: =IFERROR(SUM(O86:O102),"") -> 0 | P85: =IFERROR(IF(O85<='Guide d''utilisation'!$G$17,'Guide d''utilisation'!$H$17,IF(O85<='Guide d''utilisation'!$G$18,'Guide d''utilisation'!$H$18,IF(O85<='Guide d''utilisation'!$G$19,'Guide d''utilisation'!$H$19,'Guide d''utilisation'!$H$20))),"") -> Insuffisant | Q85: =1/7 -> 0.1428571429 | R85: =O85*Q85 -> 0
A86: 8.1 | B86: Planification et contrôle de la réalisation | C86: =M86 -> Insuffisant | D86: =L86 -> 0 | E86: =IFERROR(IF(D86<='Guide d''utilisation'!$G$17,'Guide d''utilisation'!$I$17,IF(D86<='Guide d''utilisation'!$G$18,'Guide d''utilisation'!$I$18,IF(D86<='Guide d''utilisation'!$G$19,'Guide d''utilisation'!$I$19,'Guide d''utilisation'!$I$20))),"") -> Conformité de niveau 1 : Il est nécessaire de formaliser les activités réalisées. | H86: Sous-Article | J86: vérifier si Somme = 1 => | K86: =SUM(K87:K92) -> 1 | L86: =IFERROR(SUM(L87:L92),"") -> 0 | M86: =IFERROR(IF(L86<='Guide d''utilisation'!$G$17,'Guide d''utilisation'!$H$17,IF(L86<='Guide d''utilisation'!$G$18,'Guide d''utilisation'!$H$18,IF(L86<='Guide d''utilisation'!$G$19,'Guide d''utilisation'!$H$19,'Guide d''utilisation'!$H$20))),"") -> Insuffisant | N86: =1/COUNTA($M$86:$M$102) -> 0.3333333333 | O86: =N86*L86 -> 0
A87: =CONCATENATE("cr ",MID(A84,3,4)+1) -> cr 58 | B87: Les processus internes et externes relatifs à la gestion des risques et l'atteinte des objectifs sont détérminés, planifiés, mis en œuvre et contrôlés | C87: Choix de VÉRACITÉ | D87: =J87 ->  | E87: =CHOOSE(I87,"Libellé du critère quand il sera choisi",'Guide d''utilisation'!$B$17,'Guide d''utilisation'!$B$18,'Guide d''utilisation'!$B$19,'Guide d''utilisation'!$B$20,,) -> Libellé du critère quand il sera choisi | G87: =G84+1 -> 58 | H87: =C87 -> Choix de VÉRACITÉ | I87: =IFERROR((VLOOKUP(C87,'Guide d''utilisation'!$M$16:$N$20,2)),"") -> 1 | J87: =IFERROR(CHOOSE(I87,"",'Guide d''utilisation'!$E$17,'Guide d''utilisation'!$E$18,'Guide d''utilisation'!$E$19,'Guide d''utilisation'!$E$20,),"") ->  | K87: =1/COUNTA($B$87:$B$92) -> 0.1666666667 | L87: =IFERROR(J87*K87,"") -> 
A88: =CONCATENATE("cr ",MID(A87,3,4)+1) -> cr 59 | B88: Les exigences et les critères des processus (gestion des risques et l'atteinte des objectifs) sont déterminés | C88: Choix de VÉRACITÉ | E88: =CHOOSE(I88,"Libellé du critère quand il sera choisi",'Guide d''utilisation'!$B$17,'Guide d''utilisation'!$B$18,'Guide d''utilisation'!$B$19,'Guide d''utilisation'!$B$20,,) -> Libellé du critère quand il sera choisi | G88: =G87+1 -> 59 | H88: Choix de VÉRACITÉ | I88: =IFERROR((VLOOKUP(C88,'Guide d''utilisation'!$M$16:$N$20,2)),"") -> 1 | J88: =IFERROR(CHOOSE(I88,"",'Guide d''utilisation'!$E$17,'Guide d''utilisation'!$E$18,'Guide d''utilisation'!$E$19,'Guide d''utilisation'!$E$20,),"") ->  | K88: 0.1666666667
A89: cr 60 | B89: L'organisme assure la maîtrise des processus conformément à ces critères | C89: Choix de VÉRACITÉ | E89: =CHOOSE(I89,"Libellé du critère quand il sera choisi",'Guide d''utilisation'!$B$17,'Guide d''utilisation'!$B$18,'Guide d''utilisation'!$B$19,'Guide d''utilisation'!$B$20,,) -> Libellé du critère quand il sera choisi | G89: 60 | H89: Choix de VÉRACITÉ | I89: =IFERROR((VLOOKUP(C89,'Guide d''utilisation'!$M$16:$N$20,2)),"") -> 1 | J89: =IFERROR(CHOOSE(I89,"",'Guide d''utilisation'!$E$17,'Guide d''utilisation'!$E$18,'Guide d''utilisation'!$E$19,'Guide d''utilisation'!$E$20,),"") ->  | K89: 0.1666666667
A90: cr 61 | B90: L'organisme conserve les documents nécessaires afin de démontrer que le processus a été mené comme convenu | C90: Choix de VÉRACITÉ | E90: =CHOOSE(I90,"Libellé du critère quand il sera choisi",'Guide d''utilisation'!$B$17,'Guide d''utilisation'!$B$18,'Guide d''utilisation'!$B$19,'Guide d''utilisation'!$B$20,,) -> Libellé du critère quand il sera choisi | G90: 61 | H90: Choix de VÉRACITÉ | I90: =IFERROR((VLOOKUP(C90,'Guide d''utilisation'!$M$16:$N$20,2)),"") -> 1 | J90: =IFERROR(CHOOSE(I90,"",'Guide d''utilisation'!$E$17,'Guide d''utilisation'!$E$18,'Guide d''utilisation'!$E$19,'Guide d''utilisation'!$E$20,),"") ->  | K90: 0.1666666667
A91: cr 62 | B91: Tout changement planifié est contrôlé et tout changement imprévu est passé en revue dans ses conséquences et des actions sont menées pour atténuer les effets néfastes | C91: Choix de VÉRACITÉ | E91: =CHOOSE(I91,"Libellé du critère quand il sera choisi",'Guide d''utilisation'!$B$17,'Guide d''utilisation'!$B$18,'Guide d''utilisation'!$B$19,'Guide d''utilisation'!$B$20,,) -> Libellé du critère quand il sera choisi | G91: 62 | H91: Choix de VÉRACITÉ | I91: =IFERROR((VLOOKUP(C91,'Guide d''utilisation'!$M$16:$N$20,2)),"") -> 1 | J91: =IFERROR(CHOOSE(I91,"",'Guide d''utilisation'!$E$17,'Guide d''utilisation'!$E$18,'Guide d''utilisation'!$E$19,'Guide d''utilisation'!$E$20,),"") ->  | K91: 0.1666666667
A92: =CONCATENATE("cr ",MID(A91,3,4)+1) -> cr 63 | B92: Les processus sous-traités ou externalisés sont contrôlés | C92: Choix de VÉRACITÉ | E92: =CHOOSE(I92,"Libellé du critère quand il sera choisi",'Guide d''utilisation'!$B$17,'Guide d''utilisation'!$B$18,'Guide d''utilisation'!$B$19,'Guide d''utilisation'!$B$20,,) -> Libellé du critère quand il sera choisi | G92: =G91+1 -> 63 | H92: Choix de VÉRACITÉ | I92: =IFERROR((VLOOKUP(C92,'Guide d''utilisation'!$M$16:$N$20,2)),"") -> 1 | J92: =IFERROR(CHOOSE(I92,"",'Guide d''utilisation'!$E$17,'Guide d''utilisation'!$E$18,'Guide d''utilisation'!$E$19,'Guide d''utilisation'!$E$20,),"") ->  | K92: 0.1666666667
A93: 8.2 | B93: Conception des processus liés aux documents d'activité | C93: =M93 -> Insuffisant | D93: =L93 -> 0 | E93: =IFERROR(IF(D93<='Guide d''utilisation'!$G$17,'Guide d''utilisation'!$I$17,IF(D93<='Guide d''utilisation'!$G$18,'Guide d''utilisation'!$I$18,IF(D93<='Guide d''utilisation'!$G$19,'Guide d''utilisation'!$I$19,'Guide d''utilisation'!$I$20))),"") -> Conformité de niveau 1 : Il est nécessaire de formaliser les activités réalisées. | H93: Sous-Article | J93: vérifier si Somme = 1 => | K93: =SUM(K94:K98) -> 1 | L93: =IFERROR(SUM(L94:L98),"") -> 0 | M93: =IFERROR(IF(L93<='Guide d''utilisation'!$G$17,'Guide d''utilisation'!$H$17,IF(L93<='Guide d''utilisation'!$G$18,'Guide d''utilisation'!$H$18,IF(L93<='Guide d''utilisation'!$G$19,'Guide d''utilisation'!$H$19,'Guide d''utilisation'!$H$20))),"") -> Insuffisant | N93: =1/COUNTA($M$86:$M$102) -> 0.3333333333 | O93: =N93*L93 -> 0
A94: =CONCATENATE("cr ",MID(A92,3,4)+1) -> cr 64 | B94: Les processus métiers sont analysés afin de déterminer les exigences relatives à la création et au contrôle des documents d'activité | C94: Choix de VÉRACITÉ | D94: =J94 ->  | E94: =CHOOSE(I94,"Libellé du critère quand il sera choisi",'Guide d''utilisation'!$B$17,'Guide d''utilisation'!$B$18,'Guide d''utilisation'!$B$19,'Guide d''utilisation'!$B$20,,) -> Libellé du critère quand il sera choisi | G94: =G92+1 -> 64 | H94: =C94 -> Choix de VÉRACITÉ | I94: =IFERROR((VLOOKUP(C94,'Guide d''utilisation'!$M$16:$N$20,2)),"") -> 1 | J94: =IFERROR(CHOOSE(I94,"",'Guide d''utilisation'!$E$17,'Guide d''utilisation'!$E$18,'Guide d''utilisation'!$E$19,'Guide d''utilisation'!$E$20,),"") ->  | K94: =1/COUNTA($B$94:$B$98) -> 0.2 | L94: =IFERROR(J94*K94,"") -> 
A95: =CONCATENATE("cr ",MID(A94,3,4)+1) -> cr 65 | B95: Les risques associés aux défauts de contrôle, à la fiabilité et à l'exploitabilité des documents d'activité en lien avec des processus opérationnels sont évalués | C95: Choix de VÉRACITÉ | D95: =J95 ->  | E95: =CHOOSE(I95,"Libellé du critère quand il sera choisi",'Guide d''utilisation'!$B$17,'Guide d''utilisation'!$B$18,'Guide d''utilisation'!$B$19,'Guide d''utilisation'!$B$20,,) -> Libellé du critère quand il sera choisi | G95: =G94+1 -> 65 | H95: =C95 -> Choix de VÉRACITÉ | I95: =IFERROR((VLOOKUP(C95,'Guide d''utilisation'!$M$16:$N$20,2)),"") -> 1 | J95: =IFERROR(CHOOSE(I95,"",'Guide d''utilisation'!$E$17,'Guide d''utilisation'!$E$18,'Guide d''utilisation'!$E$19,'Guide d''utilisation'!$E$20,),"") ->  | K95: =1/COUNTA($B$94:$B$98) -> 0.2
A96: cr 66 | B96: Les processus de création des documents d'activité sont spéricifiés en déterminant leurs typologie, contenu, contexte, forme et les technologies pour la création et l'enregistrement des documents d'activité | C96: Choix de VÉRACITÉ | E96: =CHOOSE(I96,"Libellé du critère quand il sera choisi",'Guide d''utilisation'!$B$17,'Guide d''utilisation'!$B$18,'Guide d''utilisation'!$B$19,'Guide d''utilisation'!$B$20,,) -> Libellé du critère quand il sera choisi | G96: 66 | H96: Choix de VÉRACITÉ | I96: =IFERROR((VLOOKUP(C96,'Guide d''utilisation'!$M$16:$N$20,2)),"") -> 1 | J96: =IFERROR(CHOOSE(I96,"",'Guide d''utilisation'!$E$17,'Guide d''utilisation'!$E$18,'Guide d''utilisation'!$E$19,'Guide d''utilisation'!$E$20,),"") ->  | K96: =1/COUNTA($B$94:$B$98) -> 0.2
A97: cr 67 | B97: Les processus de contrôle des documents d'activité sont spécifiés en déterminant les informations de contrôle et les habilitations à les détruire, en fixant les règles et les conditions d'utilisation qui doivent être respectées par l'administration et la maintenance des systèmes documentaires et en maintenant l'exploitabilité | C97: Choix de VÉRACITÉ | D97: =J97 ->  | E97: =CHOOSE(I97,"Libellé du critère quand il sera choisi",'Guide d''utilisation'!$B$17,'Guide d''utilisation'!$B$18,'Guide d''utilisation'!$B$19,'Guide d''utilisation'!$B$20,,) -> Libellé du critère quand il sera choisi | G97: 67 | H97: =C97 -> Choix de VÉRACITÉ | I97: =IFERROR((VLOOKUP(C97,'Guide d''utilisation'!$M$16:$N$20,2)),"") -> 1 | J97: =IFERROR(CHOOSE(I97,"",'Guide d''utilisation'!$E$17,'Guide d''utilisation'!$E$18,'Guide d''utilisation'!$E$19,'Guide d''utilisation'!$E$20,),"") ->  | K97: =1/COUNTA($B$94:$B$98) -> 0.2
A98: =CONCATENATE("cr ",MID(A97,3,4)+1) -> cr 68 | B98: Les processus et les contrôles sont mis en œuvre en tenant compte des ressources de l'organisme, du contexte de l'activié, des risques identifiés ainsi que de l'environnement réglementaire et sociétal | C98: Choix de VÉRACITÉ | E98: =CHOOSE(I98,"Libellé du critère quand il sera choisi",'Guide d''utilisation'!$B$17,'Guide d''utilisation'!$B$18,'Guide d''utilisation'!$B$19,'Guide d''utilisation'!$B$20,,) -> Libellé du critère quand il sera choisi | G98: =G97+1 -> 68 | H98: Choix de VÉRACITÉ | I98: =IFERROR((VLOOKUP(C98,'Guide d''utilisation'!$M$16:$N$20,2)),"") -> 1 | J98: =IFERROR(CHOOSE(I98,"",'Guide d''utilisation'!$E$17,'Guide d''utilisation'!$E$18,'Guide d''utilisation'!$E$19,'Guide d''utilisation'!$E$20,),"") ->  | K98: =1/COUNTA($B$94:$B$98) -> 0.2
A99: 8.3 | B99: Mise en œuvre de système documentaire | C99: =M99 -> Insuffisant | D99: =L99 -> 0 | E99: =IFERROR(IF(D99<='Guide d''utilisation'!$G$17,'Guide d''utilisation'!$I$17,IF(D99<='Guide d''utilisation'!$G$18,'Guide d''utilisation'!$I$18,IF(D99<='Guide d''utilisation'!$G$19,'Guide d''utilisation'!$I$19,'Guide d''utilisation'!$I$20))),"") -> Conformité de niveau 1 : Il est nécessaire de formaliser les activités réalisées. | H99: Sous-Article | J99: vérifier si Somme = 1 => | K99: =SUM(K100:K102) -> 1 | L99: =IFERROR(SUM(L100:L102),"") -> 0 | M99: =IFERROR(IF(L99<='Guide d''utilisation'!$G$17,'Guide d''utilisation'!$H$17,IF(L99<='Guide d''utilisation'!$G$18,'Guide d''utilisation'!$H$18,IF(L99<='Guide d''utilisation'!$G$19,'Guide d''utilisation'!$H$19,'Guide d''utilisation'!$H$20))),"") -> Insuffisant | N99: =1/COUNTA($M$86:$M$102) -> 0.3333333333 | O99: =N99*L99 -> 0
A100: =CONCATENATE("cr ",MID(A98,3,4)+1) -> cr 69 | B100: Les processus liés aux documents d'activité dans le système documentaire sont mis en œuvre pour atteindre les objectifs | C100: Choix de VÉRACITÉ | D100: =J100 ->  | E100: =CHOOSE(I100,"Libellé du critère quand il sera choisi",'Guide d''utilisation'!$B$17,'Guide d''utilisation'!$B$18,'Guide d''utilisation'!$B$19,'Guide d''utilisation'!$B$20,,) -> Libellé du critère quand il sera choisi | G100: =G98+1 -> 69 | H100: =C100 -> Choix de VÉRACITÉ | I100: =IFERROR((VLOOKUP(C100,'Guide d''utilisation'!$M$16:$N$20,2)),"") -> 1 | J100: =IFERROR(CHOOSE(I100,"",'Guide d''utilisation'!$E$17,'Guide d''utilisation'!$E$18,'Guide d''utilisation'!$E$19,'Guide d''utilisation'!$E$20,),"") ->  | K100: =1/COUNTA($B$100:$B$102) -> 0.3333333333 | L100: =IFERROR(J100*K100,"") -> 
A101: =CONCATENATE("cr ",MID(A100,3,4)+1) -> cr 70 | B101: Une surveillance régulière des performances des systèmes documentaires est établie par rapport aux exigences opérationnelles et aux objectifs | C101: Choix de VÉRACITÉ | D101: =J101 ->  | E101: =CHOOSE(I101,"Libellé du critère quand il sera choisi",'Guide d''utilisation'!$B$17,'Guide d''utilisation'!$B$18,'Guide d''utilisation'!$B$19,'Guide d''utilisation'!$B$20,,) -> Libellé du critère quand il sera choisi | G101: =G100+1 -> 70 | H101: =C101 -> Choix de VÉRACITÉ | I101: =IFERROR((VLOOKUP(C101,'Guide d''utilisation'!$M$16:$N$20,2)),"") -> 1 | J101: =IFERROR(CHOOSE(I101,"",'Guide d''utilisation'!$E$17,'Guide d''utilisation'!$E$18,'Guide d''utilisation'!$E$19,'Guide d''utilisation'!$E$20,),"") ->  | K101: =1/COUNTA($B$100:$B$102) -> 0.3333333333
A102: =CONCATENATE("cr ",MID(A101,3,4)+1) -> cr 71 | B102: L'organisme gére le foctionnement des systèmes documentaires | C102: Choix de VÉRACITÉ | E102: =CHOOSE(I102,"Libellé du critère quand il sera choisi",'Guide d''utilisation'!$B$17,'Guide d''utilisation'!$B$18,'Guide d''utilisation'!$B$19,'Guide d''utilisation'!$B$20,,) -> Libellé du critère quand il sera choisi | G102: =G101+1 -> 71 | H102: Choix de VÉRACITÉ | I102: =IFERROR((VLOOKUP(C102,'Guide d''utilisation'!$M$16:$N$20,2)),"") -> 1 | J102: =IFERROR(CHOOSE(I102,"",'Guide d''utilisation'!$E$17,'Guide d''utilisation'!$E$18,'Guide d''utilisation'!$E$19,'Guide d''utilisation'!$E$20,),"") ->  | K102: =1/COUNTA($B$100:$B$102) -> 0.3333333333
A103: Art. 9 | B103: Évaluation des performances | C103: =P103 -> Insuffisant | D103: =O103 -> 0 | E103: =IFERROR(IF(D103<='Guide d''utilisation'!$G$17,'Guide d''utilisation'!$I$17,IF(D103<='Guide d''utilisation'!$G$18,'Guide d''utilisation'!$I$18,IF(D103<='Guide d''utilisation'!$G$19,'Guide d''utilisation'!$I$19,'Guide d''utilisation'!$I$20))),"") -> Conformité de niveau 1 : Il est nécessaire de formaliser les activités réalisées. | H103: Article | M103: vérifier si Somme = 1 => | N103: =SUM(N104:N120) -> 1 | O103: =IFERROR(SUM(O104:O120),"") -> 0 | P103: =IFERROR(IF(O103<='Guide d''utilisation'!$G$17,'Guide d''utilisation'!$H$17,IF(O103<='Guide d''utilisation'!$G$18,'Guide d''utilisation'!$H$18,IF(O103<='Guide d''utilisation'!$G$19,'Guide d''utilisation'!$H$19,'Guide d''utilisation'!$H$20))),"") -> Insuffisant | Q103: =1/7 -> 0.1428571429 | R103: =O103*Q103 -> 0
A104: 9.1 | B104: Surveillance, mesure, analyse et évaluation des performances | C104: =M104 -> Insuffisant | D104: =L104 -> 0 | E104: =IFERROR(IF(D104<='Guide d''utilisation'!$G$17,'Guide d''utilisation'!$I$17,IF(D104<='Guide d''utilisation'!$G$18,'Guide d''utilisation'!$I$18,IF(D104<='Guide d''utilisation'!$G$19,'Guide d''utilisation'!$I$19,'Guide d''utilisation'!$I$20))),"") -> Conformité de niveau 1 : Il est nécessaire de formaliser les activités réalisées. | H104: Sous-Article | J104: vérifier si Somme = 1 => | K104: =SUM(K105:K109) -> 1 | L104: =IFERROR(SUM(L105:L109),"") -> 0 | M104: =IFERROR(IF(L104<='Guide d''utilisation'!$G$17,'Guide d''utilisation'!$H$17,IF(L104<='Guide d''utilisation'!$G$18,'Guide d''utilisation'!$H$18,IF(L104<='Guide d''utilisation'!$G$19,'Guide d''utilisation'!$H$19,'Guide d''utilisation'!$H$20))),"") -> Insuffisant | N104: =1/COUNTA($M$104:$M$116) -> 0.3333333333 | O104: =N104*L104 -> 0
A105: =CONCATENATE("cr ",MID(A102,3,4)+1) -> cr 72 | B105: L'organisme établit les critères et les modalités de surveillance pour assurer la validité des résultats | C105: Choix de VÉRACITÉ | D105: =J105 ->  | E105: =CHOOSE(I105,"Libellé du critère quand il sera choisi",'Guide d''utilisation'!$B$17,'Guide d''utilisation'!$B$18,'Guide d''utilisation'!$B$19,'Guide d''utilisation'!$B$20,,) -> Libellé du critère quand il sera choisi | G105: =G102+1 -> 72 | H105: =C105 -> Choix de VÉRACITÉ | I105: =IFERROR((VLOOKUP(C105,'Guide d''utilisation'!$M$16:$N$20,2)),"") -> 1 | J105: =IFERROR(CHOOSE(I105,"",'Guide d''utilisation'!$E$17,'Guide d''utilisation'!$E$18,'Guide d''utilisation'!$E$19,'Guide d''utilisation'!$E$20,),"") ->  | K105: =1/COUNTA($B$105:$B$109) -> 0.2 | L105: =IFERROR(J105*K105,"") -> 
A106: =CONCATENATE("cr ",MID(A105,3,4)+1) -> cr 73 | B106: L'organisme planifie les opérations de surveillance, de mesure ainsi que l'analyse et l'évaluation des résultats | C106: Choix de VÉRACITÉ | D106: =J106 ->  | E106: =CHOOSE(I106,"Libellé du critère quand il sera choisi",'Guide d''utilisation'!$B$17,'Guide d''utilisation'!$B$18,'Guide d''utilisation'!$B$19,'Guide d''utilisation'!$B$20,,) -> Libellé du critère quand il sera choisi | G106: =G105+1 -> 73 | H106: =C106 -> Choix de VÉRACITÉ | I106: =IFERROR((VLOOKUP(C106,'Guide d''utilisation'!$M$16:$N$20,2)),"") -> 1 | J106: =IFERROR(CHOOSE(I106,"",'Guide d''utilisation'!$E$17,'Guide d''utilisation'!$E$18,'Guide d''utilisation'!$E$19,'Guide d''utilisation'!$E$20,),"") ->  | K106: =1/COUNTA($B$105:$B$109) -> 0.2 | L106: =IFERROR(J106*K106,"") -> 
A107: =CONCATENATE("cr ",MID(A106,3,4)+1) -> cr 74 | B107: L'organisme prend des mesures pour parer à l'apparition de défauts avant la production des cas de non-conformité | C107: Choix de VÉRACITÉ | D107: =J107 ->  | E107: =CHOOSE(I107,"Libellé du critère quand il sera choisi",'Guide d''utilisation'!$B$17,'Guide d''utilisation'!$B$18,'Guide d''utilisation'!$B$19,'Guide d''utilisation'!$B$20,,) -> Libellé du critère quand il sera choisi | G107: =G106+1 -> 74 | H107: =C107 -> Choix de VÉRACITÉ | I107: =IFERROR((VLOOKUP(C107,'Guide d''utilisation'!$M$16:$N$20,2)),"") -> 1 | J107: =IFERROR(CHOOSE(I107,"",'Guide d''utilisation'!$E$17,'Guide d''utilisation'!$E$18,'Guide d''utilisation'!$E$19,'Guide d''utilisation'!$E$20,),"") ->  | K107: =1/COUNTA($B$105:$B$109) -> 0.2 | L107: =IFERROR(J107*K107,"") -> 
A108: =CONCATENATE("cr ",MID(A107,3,4)+1) -> cr 75 | B108: Des informations documentées sont conservées comme preuve des résultats de la performance obtenue et l'efficacité du SGDA | C108: Choix de VÉRACITÉ | D108: =J108 ->  | E108: =CHOOSE(I108,"Libellé du critère quand il sera choisi",'Guide d''utilisation'!$B$17,'Guide d''utilisation'!$B$18,'Guide d''utilisation'!$B$19,'Guide d''utilisation'!$B$20,,) -> Libellé du critère quand il sera choisi | G108: =G107+1 -> 75 | H108: =C108 -> Choix de VÉRACITÉ | I108: =IFERROR((VLOOKUP(C108,'Guide d''utilisation'!$M$16:$N$20,2)),"") -> 1 | J108: =IFERROR(CHOOSE(I108,"",'Guide d''utilisation'!$E$17,'Guide d''utilisation'!$E$18,'Guide d''utilisation'!$E$19,'Guide d''utilisation'!$E$20,),"") ->  | K108: =1/COUNTA($B$105:$B$109) -> 0.2 | L108: =IFERROR(J108*K108,"") -> 
A109: =CONCATENATE("cr ",MID(A108,3,4)+1) -> cr 76 | B109: Les données issues de la surveillance et de la mesure sont évaluées et analysées pour progresser à tous les niveaux (parties prenantes, processus, objectifs, résultats...) | C109: Choix de VÉRACITÉ | D109: =J109 ->  | E109: =CHOOSE(I109,"Libellé du critère quand il sera choisi",'Guide d''utilisation'!$B$17,'Guide d''utilisation'!$B$18,'Guide d''utilisation'!$B$19,'Guide d''utilisation'!$B$20,,) -> Libellé du critère quand il sera choisi | G109: =G108+1 -> 76 | H109: =C109 -> Choix de VÉRACITÉ | I109: =IFERROR((VLOOKUP(C109,'Guide d''utilisation'!$M$16:$N$20,2)),"") -> 1 | J109: =IFERROR(CHOOSE(I109,"",'Guide d''utilisation'!$E$17,'Guide d''utilisation'!$E$18,'Guide d''utilisation'!$E$19,'Guide d''utilisation'!$E$20,),"") ->  | K109: =1/COUNTA($B$105:$B$109) -> 0.2 | L109: =IFERROR(J109*K109,"") -> 
A110: 9.2 | B110: Audit interne du système | C110: =M110 -> Insuffisant | D110: =L110 -> 0 | E110: =IFERROR(IF(D110<='Guide d''utilisation'!$G$17,'Guide d''utilisation'!$I$17,IF(D110<='Guide d''utilisation'!$G$18,'Guide d''utilisation'!$I$18,IF(D110<='Guide d''utilisation'!$G$19,'Guide d''utilisation'!$I$19,'Guide d''utilisation'!$I$20))),"") -> Conformité de niveau 1 : Il est nécessaire de formaliser les activités réalisées. | H110: Sous-Article | J110: vérifier si Somme = 1 => | K110: =SUM(K111:K115) -> 1 | L110: =IFERROR(SUM(L111:L115),"") -> 0 | M110: =IFERROR(IF(L110<='Guide d''utilisation'!$G$17,'Guide d''utilisation'!$H$17,IF(L110<='Guide d''utilisation'!$G$18,'Guide d''utilisation'!$H$18,IF(L110<='Guide d''utilisation'!$G$19,'Guide d''utilisation'!$H$19,'Guide d''utilisation'!$H$20))),"") -> Insuffisant | N110: =1/COUNTA($M$104:$M$116) -> 0.3333333333 | O110: =N110*L110 -> 0
A111: =CONCATENATE("cr ",MID(A109,3,4)+1) -> cr 77 | B111: Les audits internes sont planifiés, établis et mis en œuvre à des intervalles déterminés | C111: Choix de VÉRACITÉ | D111: =J111 ->  | E111: =CHOOSE(I111,"Libellé du critère quand il sera choisi",'Guide d''utilisation'!$B$17,'Guide d''utilisation'!$B$18,'Guide d''utilisation'!$B$19,'Guide d''utilisation'!$B$20,,) -> Libellé du critère quand il sera choisi | G111: =G109+1 -> 77 | H111: =C111 -> Choix de VÉRACITÉ | I111: =IFERROR((VLOOKUP(C111,'Guide d''utilisation'!$M$16:$N$20,2)),"") -> 1 | J111: =IFERROR(CHOOSE(I111,"",'Guide d''utilisation'!$E$17,'Guide d''utilisation'!$E$18,'Guide d''utilisation'!$E$19,'Guide d''utilisation'!$E$20,),"") ->  | K111: =1/COUNTA($B$111:$B$115) -> 0.2 | L111: =IFERROR(J111*K111,"") -> 
A112: =CONCATENATE("cr ",MID(A111,3,4)+1) -> cr 78 | B112: Les critères et le périmètre de chaque audit sont définis | C112: Choix de VÉRACITÉ | D112: =J112 ->  | E112: =CHOOSE(I112,"Libellé du critère quand il sera choisi",'Guide d''utilisation'!$B$17,'Guide d''utilisation'!$B$18,'Guide d''utilisation'!$B$19,'Guide d''utilisation'!$B$20,,) -> Libellé du critère quand il sera choisi | G112: =G111+1 -> 78 | H112: =C112 -> Choix de VÉRACITÉ | I112: =IFERROR((VLOOKUP(C112,'Guide d''utilisation'!$M$16:$N$20,2)),"") -> 1 | J112: =IFERROR(CHOOSE(I112,"",'Guide d''utilisation'!$E$17,'Guide d''utilisation'!$E$18,'Guide d''utilisation'!$E$19,'Guide d''utilisation'!$E$20,),"") ->  | K112: =1/COUNTA($B$111:$B$115) -> 0.2 | L112: =IFERROR(J112*K112,"") -> 
A113: =CONCATENATE("cr ",MID(A112,3,4)+1) -> cr 79 | B113: Les auditeurs et ceux qui conduiront les audits sont sélectionnés en s'assurant de l'objectivité et de l'impartialité du processus d'audit | C113: Choix de VÉRACITÉ | D113: =J113 ->  | E113: =CHOOSE(I113,"Libellé du critère quand il sera choisi",'Guide d''utilisation'!$B$17,'Guide d''utilisation'!$B$18,'Guide d''utilisation'!$B$19,'Guide d''utilisation'!$B$20,,) -> Libellé du critère quand il sera choisi | G113: =G112+1 -> 79 | H113: =C113 -> Choix de VÉRACITÉ | I113: =IFERROR((VLOOKUP(C113,'Guide d''utilisation'!$M$16:$N$20,2)),"") -> 1 | J113: =IFERROR(CHOOSE(I113,"",'Guide d''utilisation'!$E$17,'Guide d''utilisation'!$E$18,'Guide d''utilisation'!$E$19,'Guide d''utilisation'!$E$20,),"") ->  | K113: =1/COUNTA($B$111:$B$115) -> 0.2 | L113: =IFERROR(J113*K113,"") -> 
A114: =CONCATENATE("cr ",MID(A113,3,4)+1) -> cr 80 | B114: Les résultats des audits sont communiqués aux responsables idoines | C114: Choix de VÉRACITÉ | D114: =J114 ->  | E114: =CHOOSE(I114,"Libellé du critère quand il sera choisi",'Guide d''utilisation'!$B$17,'Guide d''utilisation'!$B$18,'Guide d''utilisation'!$B$19,'Guide d''utilisation'!$B$20,,) -> Libellé du critère quand il sera choisi | G114: =G113+1 -> 80 | H114: =C114 -> Choix de VÉRACITÉ | I114: =IFERROR((VLOOKUP(C114,'Guide d''utilisation'!$M$16:$N$20,2)),"") -> 1 | J114: =IFERROR(CHOOSE(I114,"",'Guide d''utilisation'!$E$17,'Guide d''utilisation'!$E$18,'Guide d''utilisation'!$E$19,'Guide d''utilisation'!$E$20,),"") ->  | K114: =1/COUNTA($B$111:$B$115) -> 0.2 | L114: =IFERROR(J114*K114,"") -> 
A115: =CONCATENATE("cr ",MID(A114,3,4)+1) -> cr 81 | B115: Des informations documentées sont conservées comme preuve des résultats | C115: Choix de VÉRACITÉ | D115: =J115 ->  | E115: =CHOOSE(I115,"Libellé du critère quand il sera choisi",'Guide d''utilisation'!$B$17,'Guide d''utilisation'!$B$18,'Guide d''utilisation'!$B$19,'Guide d''utilisation'!$B$20,,) -> Libellé du critère quand il sera choisi | G115: =G114+1 -> 81 | H115: =C115 -> Choix de VÉRACITÉ | I115: =IFERROR((VLOOKUP(C115,'Guide d''utilisation'!$M$16:$N$20,2)),"") -> 1 | J115: =IFERROR(CHOOSE(I115,"",'Guide d''utilisation'!$E$17,'Guide d''utilisation'!$E$18,'Guide d''utilisation'!$E$19,'Guide d''utilisation'!$E$20,),"") ->  | K115: =1/COUNTA($B$111:$B$115) -> 0.2 | L115: =IFERROR(J115*K115,"") -> 
A116: 9.3 | B116: Revue de direction | C116: =M116 -> Insuffisant | D116: =L116 -> 0 | E116: =IFERROR(IF(D116<='Guide d''utilisation'!$G$17,'Guide d''utilisation'!$I$17,IF(D116<='Guide d''utilisation'!$G$18,'Guide d''utilisation'!$I$18,IF(D116<='Guide d''utilisation'!$G$19,'Guide d''utilisation'!$I$19,'Guide d''utilisation'!$I$20))),"") -> Conformité de niveau 1 : Il est nécessaire de formaliser les activités réalisées. | H116: Sous-Article | J116: vérifier si Somme = 1 => | K116: =SUM(K117:K120) -> 1 | L116: =IFERROR(SUM(L117:L120),"") -> 0 | M116: =IFERROR(IF(L116<='Guide d''utilisation'!$G$17,'Guide d''utilisation'!$H$17,IF(L116<='Guide d''utilisation'!$G$18,'Guide d''utilisation'!$H$18,IF(L116<='Guide d''utilisation'!$G$19,'Guide d''utilisation'!$H$19,'Guide d''utilisation'!$H$20))),"") -> Insuffisant | N116: =1/COUNTA($M$104:$M$116) -> 0.3333333333 | O116: =N116*L116 -> 0
A117: =CONCATENATE("cr ",MID(A115,3,4)+1) -> cr 82 | B117: La revue du SGDA est réalisée à des intervalles programmés pour s'assurer de sa pertinence et son adéquation aux besoins et à l'efficacité de l'organisme | C117: Choix de VÉRACITÉ | D117: =J117 ->  | E117: =CHOOSE(I117,"Libellé du critère quand il sera choisi",'Guide d''utilisation'!$B$17,'Guide d''utilisation'!$B$18,'Guide d''utilisation'!$B$19,'Guide d''utilisation'!$B$20,,) -> Libellé du critère quand il sera choisi | G117: =G115+1 -> 82 | H117: =C117 -> Choix de VÉRACITÉ | I117: =IFERROR((VLOOKUP(C117,'Guide d''utilisation'!$M$16:$N$20,2)),"") -> 1 | J117: =IFERROR(CHOOSE(I117,"",'Guide d''utilisation'!$E$17,'Guide d''utilisation'!$E$18,'Guide d''utilisation'!$E$19,'Guide d''utilisation'!$E$20,),"") ->  | K117: =1/COUNTA($B$117:$B$120) -> 0.25 | L117: =IFERROR(J117*K117,"") -> 
A118: =CONCATENATE("cr ",MID(A117,3,4)+1) -> cr 83 | B118: La revue de direction exploite des éléments d'entrée pertinents et complets (bilans, résultats, enquêtes, efficience, analyses, prestataires...) | C118: Choix de VÉRACITÉ | D118: =J118 ->  | E118: =CHOOSE(I118,"Libellé du critère quand il sera choisi",'Guide d''utilisation'!$B$17,'Guide d''utilisation'!$B$18,'Guide d''utilisation'!$B$19,'Guide d''utilisation'!$B$20,,) -> Libellé du critère quand il sera choisi | G118: =G117+1 -> 83 | H118: =C118 -> Choix de VÉRACITÉ | I118: =IFERROR((VLOOKUP(C118,'Guide d''utilisation'!$M$16:$N$20,2)),"") -> 1 | J118: =IFERROR(CHOOSE(I118,"",'Guide d''utilisation'!$E$17,'Guide d''utilisation'!$E$18,'Guide d''utilisation'!$E$19,'Guide d''utilisation'!$E$20,),"") ->  | K118: =1/COUNTA($B$117:$B$120) -> 0.25 | L118: =IFERROR(J118*K118,"") -> 
A119: =CONCATENATE("cr ",MID(A118,3,4)+1) -> cr 84 | B119: La revue de direction fournit des décisions et actions sur les possibilités d’amélioration continue et les besoins de modifier le SGDA | C119: Choix de VÉRACITÉ | D119: =J119 ->  | E119: =CHOOSE(I119,"Libellé du critère quand il sera choisi",'Guide d''utilisation'!$B$17,'Guide d''utilisation'!$B$18,'Guide d''utilisation'!$B$19,'Guide d''utilisation'!$B$20,,) -> Libellé du critère quand il sera choisi | G119: =G118+1 -> 84 | H119: =C119 -> Choix de VÉRACITÉ | I119: =IFERROR((VLOOKUP(C119,'Guide d''utilisation'!$M$16:$N$20,2)),"") -> 1 | J119: =IFERROR(CHOOSE(I119,"",'Guide d''utilisation'!$E$17,'Guide d''utilisation'!$E$18,'Guide d''utilisation'!$E$19,'Guide d''utilisation'!$E$20,),"") ->  | K119: =1/COUNTA($B$117:$B$120) -> 0.25 | L119: =IFERROR(J119*K119,"") -> 
A120: =CONCATENATE("cr ",MID(A119,3,4)+1) -> cr 85 | B120: Les résultats des revues de direction sont conservés sous forme d'informations documentées | C120: Choix de VÉRACITÉ | D120: =J120 ->  | E120: =CHOOSE(I120,"Libellé du critère quand il sera choisi",'Guide d''utilisation'!$B$17,'Guide d''utilisation'!$B$18,'Guide d''utilisation'!$B$19,'Guide d''utilisation'!$B$20,,) -> Libellé du critère quand il sera choisi | G120: =G119+1 -> 85 | H120: =C120 -> Choix de VÉRACITÉ | I120: =IFERROR((VLOOKUP(C120,'Guide d''utilisation'!$M$16:$N$20,2)),"") -> 1 | J120: =IFERROR(CHOOSE(I120,"",'Guide d''utilisation'!$E$17,'Guide d''utilisation'!$E$18,'Guide d''utilisation'!$E$19,'Guide d''utilisation'!$E$20,),"") ->  | K120: =1/COUNTA($B$117:$B$120) -> 0.25 | L120: =IFERROR(J120*K120,"") -> 
A121: Art. 10 | B121: Amélioration | C121: =P121 -> Insuffisant | D121: =O121 -> 0 | E121: =IFERROR(IF(D121<='Guide d''utilisation'!$G$17,'Guide d''utilisation'!$I$17,IF(D121<='Guide d''utilisation'!$G$18,'Guide d''utilisation'!$I$18,IF(D121<='Guide d''utilisation'!$G$19,'Guide d''utilisation'!$I$19,'Guide d''utilisation'!$I$20))),"") -> Conformité de niveau 1 : Il est nécessaire de formaliser les activités réalisées. | H121: Article | M121: vérifier si Somme = 1 => | N121: =SUM(N122:N136) -> 1 | O121: =IFERROR(SUM(O122:O136),"") -> 0 | P121: =IFERROR(IF(O121<='Guide d''utilisation'!$G$17,'Guide d''utilisation'!$H$17,IF(O121<='Guide d''utilisation'!$G$18,'Guide d''utilisation'!$H$18,IF(O121<='Guide d''utilisation'!$G$19,'Guide d''utilisation'!$H$19,'Guide d''utilisation'!$H$20))),"") -> Insuffisant | Q121: =1/7 -> 0.1428571429 | R121: =O121*Q121 -> 0
A122: 10.1 | B122: Contrôle des non-conformités et actions correctives | C122: =M122 -> Insuffisant | D122: =L122 -> 0 | E122: =IFERROR(IF(D122<='Guide d''utilisation'!$G$17,'Guide d''utilisation'!$I$17,IF(D122<='Guide d''utilisation'!$G$18,'Guide d''utilisation'!$I$18,IF(D122<='Guide d''utilisation'!$G$19,'Guide d''utilisation'!$I$19,'Guide d''utilisation'!$I$20))),"") -> Conformité de niveau 1 : Il est nécessaire de formaliser les activités réalisées. | H122: Sous-Article | J122: vérifier si Somme = 1 => | K122: =SUM(K123:K131) -> 1 | L122: =IFERROR(SUM(L123:L131),"") -> 0 | M122: =IFERROR(IF(L122<='Guide d''utilisation'!$G$17,'Guide d''utilisation'!$H$17,IF(L122<='Guide d''utilisation'!$G$18,'Guide d''utilisation'!$H$18,IF(L122<='Guide d''utilisation'!$G$19,'Guide d''utilisation'!$H$19,'Guide d''utilisation'!$H$20))),"") -> Insuffisant | N122: =1/COUNTA($M$122:$M$136) -> 0.5 | O122: =N122*L122 -> 0
A123: =CONCATENATE("cr ",MID(A120,3,4)+1) -> cr 86 | B123: L’organisme identifie toute forme de non-conformité | C123: Choix de VÉRACITÉ | D123: =J123 ->  | E123: =CHOOSE(I123,"Libellé du critère quand il sera choisi",'Guide d''utilisation'!$B$17,'Guide d''utilisation'!$B$18,'Guide d''utilisation'!$B$19,'Guide d''utilisation'!$B$20,,) -> Libellé du critère quand il sera choisi | G123: =G120+1 -> 86 | H123: =C123 -> Choix de VÉRACITÉ | I123: =IFERROR((VLOOKUP(C123,'Guide d''utilisation'!$M$16:$N$20,2)),"") -> 1 | J123: =IFERROR(CHOOSE(I123,"",'Guide d''utilisation'!$E$17,'Guide d''utilisation'!$E$18,'Guide d''utilisation'!$E$19,'Guide d''utilisation'!$E$20,),"") ->  | K123: =1/COUNTA($B$123:$B$131) -> 0.1111111111 | L123: =IFERROR(J123*K123,"") -> 
A124: =CONCATENATE("cr ",MID(A123,3,4)+1) -> cr 87 | B124: L’organisme réagit à chaque non-conformité pour la corriger, la maîtriser et prendre en charge les conséquences | C124: Choix de VÉRACITÉ | D124: =J124 ->  | E124: =CHOOSE(I124,"Libellé du critère quand il sera choisi",'Guide d''utilisation'!$B$17,'Guide d''utilisation'!$B$18,'Guide d''utilisation'!$B$19,'Guide d''utilisation'!$B$20,,) -> Libellé du critère quand il sera choisi | G124: =G123+1 -> 87 | H124: =C124 -> Choix de VÉRACITÉ | I124: =IFERROR((VLOOKUP(C124,'Guide d''utilisation'!$M$16:$N$20,2)),"") -> 1 | J124: =IFERROR(CHOOSE(I124,"",'Guide d''utilisation'!$E$17,'Guide d''utilisation'!$E$18,'Guide d''utilisation'!$E$19,'Guide d''utilisation'!$E$20,),"") ->  | K124: =1/COUNTA($B$123:$B$131) -> 0.1111111111 | L124: =IFERROR(J124*K124,"") -> 
A125: =CONCATENATE("cr ",MID(A124,3,4)+1) -> cr 88 | B125: L’organisme évalue la nécessité d'entreprendre des actions pour éliminier les causes des non-conformités | C125: Choix de VÉRACITÉ | D125: =J125 ->  | E125: =CHOOSE(I125,"Libellé du critère quand il sera choisi",'Guide d''utilisation'!$B$17,'Guide d''utilisation'!$B$18,'Guide d''utilisation'!$B$19,'Guide d''utilisation'!$B$20,,) -> Libellé du critère quand il sera choisi | G125: =G124+1 -> 88 | H125: =C125 -> Choix de VÉRACITÉ | I125: =IFERROR((VLOOKUP(C125,'Guide d''utilisation'!$M$16:$N$20,2)),"") -> 1 | J125: =IFERROR(CHOOSE(I125,"",'Guide d''utilisation'!$E$17,'Guide d''utilisation'!$E$18,'Guide d''utilisation'!$E$19,'Guide d''utilisation'!$E$20,),"") ->  | K125: =1/COUNTA($B$123:$B$131) -> 0.1111111111 | L125: =IFERROR(J125*K125,"") -> 
A126: =CONCATENATE("cr ",MID(A125,3,4)+1) -> cr 89 | B126: L'organisme passe en revue les non-conformités | C126: Choix de VÉRACITÉ | D126: =J126 ->  | E126: =CHOOSE(I126,"Libellé du critère quand il sera choisi",'Guide d''utilisation'!$B$17,'Guide d''utilisation'!$B$18,'Guide d''utilisation'!$B$19,'Guide d''utilisation'!$B$20,,) -> Libellé du critère quand il sera choisi | G126: =G125+1 -> 89 | H126: =C126 -> Choix de VÉRACITÉ | I126: =IFERROR((VLOOKUP(C126,'Guide d''utilisation'!$M$16:$N$20,2)),"") -> 1 | J126: =IFERROR(CHOOSE(I126,"",'Guide d''utilisation'!$E$17,'Guide d''utilisation'!$E$18,'Guide d''utilisation'!$E$19,'Guide d''utilisation'!$E$20,),"") ->  | K126: =1/COUNTA($B$123:$B$131) -> 0.1111111111 | L126: =IFERROR(J126*K126,"") -> 
A127: cr 90 | B127: L'organisme identifie si des non-conformités semblables existent potentiellement dans le SGDA | C127: Choix de VÉRACITÉ | E127: =CHOOSE(I127,"Libellé du critère quand il sera choisi",'Guide d''utilisation'!$B$17,'Guide d''utilisation'!$B$18,'Guide d''utilisation'!$B$19,'Guide d''utilisation'!$B$20,,) -> Libellé du critère quand il sera choisi | G127: 90 | H127: Choix de VÉRACITÉ | I127: =IFERROR((VLOOKUP(C127,'Guide d''utilisation'!$M$16:$N$20,2)),"") -> 1 | J127: =IFERROR(CHOOSE(I127,"",'Guide d''utilisation'!$E$17,'Guide d''utilisation'!$E$18,'Guide d''utilisation'!$E$19,'Guide d''utilisation'!$E$20,),"") ->  | K127: 0.1111111111
A128: cr 91 | B128: Si nécessaire, l’organisme détermine et met en œuvre l'action corrective | C128: Choix de VÉRACITÉ | E128: =CHOOSE(I128,"Libellé du critère quand il sera choisi",'Guide d''utilisation'!$B$17,'Guide d''utilisation'!$B$18,'Guide d''utilisation'!$B$19,'Guide d''utilisation'!$B$20,,) -> Libellé du critère quand il sera choisi | G128: 91 | H128: Choix de VÉRACITÉ | I128: =IFERROR((VLOOKUP(C128,'Guide d''utilisation'!$M$16:$N$20,2)),"") -> 1 | J128: =IFERROR(CHOOSE(I128,"",'Guide d''utilisation'!$E$17,'Guide d''utilisation'!$E$18,'Guide d''utilisation'!$E$19,'Guide d''utilisation'!$E$20,),"") ->  | K128: 0.1111111111
A129: cr 92 | B129: L'efficacité de toute action corrective est évaluée | C129: Choix de VÉRACITÉ | E129: =CHOOSE(I129,"Libellé du critère quand il sera choisi",'Guide d''utilisation'!$B$17,'Guide d''utilisation'!$B$18,'Guide d''utilisation'!$B$19,'Guide d''utilisation'!$B$20,,) -> Libellé du critère quand il sera choisi | G129: 92 | H129: Choix de VÉRACITÉ | I129: =IFERROR((VLOOKUP(C129,'Guide d''utilisation'!$M$16:$N$20,2)),"") -> 1 | J129: =IFERROR(CHOOSE(I129,"",'Guide d''utilisation'!$E$17,'Guide d''utilisation'!$E$18,'Guide d''utilisation'!$E$19,'Guide d''utilisation'!$E$20,),"") ->  | K129: 0.1111111111
A130: cr 93 | B130: Si nécessaire, le SGDA est modifié | C130: Choix de VÉRACITÉ | E130: =CHOOSE(I130,"Libellé du critère quand il sera choisi",'Guide d''utilisation'!$B$17,'Guide d''utilisation'!$B$18,'Guide d''utilisation'!$B$19,'Guide d''utilisation'!$B$20,,) -> Libellé du critère quand il sera choisi | G130: 93 | H130: Choix de VÉRACITÉ | I130: =IFERROR((VLOOKUP(C130,'Guide d''utilisation'!$M$16:$N$20,2)),"") -> 1 | J130: =IFERROR(CHOOSE(I130,"",'Guide d''utilisation'!$E$17,'Guide d''utilisation'!$E$18,'Guide d''utilisation'!$E$19,'Guide d''utilisation'!$E$20,),"") ->  | K130: 0.1111111111
A131: cr 94 | B131: Des informations documentées sur la nature des non-conformités, des actions entreprises en conséquence et de leurs résultats sont conservées | C131: Choix de VÉRACITÉ | E131: =CHOOSE(I131,"Libellé du critère quand il sera choisi",'Guide d''utilisation'!$B$17,'Guide d''utilisation'!$B$18,'Guide d''utilisation'!$B$19,'Guide d''utilisation'!$B$20,,) -> Libellé du critère quand il sera choisi | G131: 94 | H131: Choix de VÉRACITÉ | I131: =IFERROR((VLOOKUP(C131,'Guide d''utilisation'!$M$16:$N$20,2)),"") -> 1 | J131: =IFERROR(CHOOSE(I131,"",'Guide d''utilisation'!$E$17,'Guide d''utilisation'!$E$18,'Guide d''utilisation'!$E$19,'Guide d''utilisation'!$E$20,),"") ->  | K131: 0.1111111111
A132: 10.2 | B132: Amélioration continue | C132: =M132 -> Insuffisant | D132: =L132 -> 0 | E132: =IFERROR(IF(D132<='Guide d''utilisation'!$G$17,'Guide d''utilisation'!$I$17,IF(D132<='Guide d''utilisation'!$G$18,'Guide d''utilisation'!$I$18,IF(D132<='Guide d''utilisation'!$G$19,'Guide d''utilisation'!$I$19,'Guide d''utilisation'!$I$20))),"") -> Conformité de niveau 1 : Il est nécessaire de formaliser les activités réalisées. | H132: Sous-Article | J132: vérifier si Somme = 1 => | K132: =SUM(K133:K136) -> 1 | L132: =IFERROR(SUM(L133:L136),"") -> 0 | M132: =IFERROR(IF(L132<='Guide d''utilisation'!$G$17,'Guide d''utilisation'!$H$17,IF(L132<='Guide d''utilisation'!$G$18,'Guide d''utilisation'!$H$18,IF(L132<='Guide d''utilisation'!$G$19,'Guide d''utilisation'!$H$19,'Guide d''utilisation'!$H$20))),"") -> Insuffisant | N132: =1/COUNTA($M$122:$M$136) -> 0.5 | O132: =N132*L132 -> 0
A133: =CONCATENATE("cr ",MID(A131,3,4)+1) -> cr 95 | B133: L’organisme s’engage à améliorer en continu l'efficacité du SGDA | C133: Choix de VÉRACITÉ | D133: =J133 ->  | E133: =CHOOSE(I133,"Libellé du critère quand il sera choisi",'Guide d''utilisation'!$B$17,'Guide d''utilisation'!$B$18,'Guide d''utilisation'!$B$19,'Guide d''utilisation'!$B$20,,) -> Libellé du critère quand il sera choisi | G133: =G131+1 -> 95 | H133: =C133 -> Choix de VÉRACITÉ | I133: =IFERROR((VLOOKUP(C133,'Guide d''utilisation'!$M$16:$N$20,2)),"") -> 1 | J133: =IFERROR(CHOOSE(I133,"",'Guide d''utilisation'!$E$17,'Guide d''utilisation'!$E$18,'Guide d''utilisation'!$E$19,'Guide d''utilisation'!$E$20,),"") ->  | K133: =1/COUNTA($B$133:$B$136) -> 0.25 | L133: =IFERROR(J133*K133,"") -> 
A134: =CONCATENATE("cr ",MID(A133,3,4)+1) -> cr 96 | B134: L'organisme détermine les besoins d’amélioration continue | C134: Choix de VÉRACITÉ | D134: =J134 ->  | E134: =CHOOSE(I134,"Libellé du critère quand il sera choisi",'Guide d''utilisation'!$B$17,'Guide d''utilisation'!$B$18,'Guide d''utilisation'!$B$19,'Guide d''utilisation'!$B$20,,) -> Libellé du critère quand il sera choisi | G134: =G133+1 -> 96 | H134: =C134 -> Choix de VÉRACITÉ | I134: =IFERROR((VLOOKUP(C134,'Guide d''utilisation'!$M$16:$N$20,2)),"") -> 1 | J134: =IFERROR(CHOOSE(I134,"",'Guide d''utilisation'!$E$17,'Guide d''utilisation'!$E$18,'Guide d''utilisation'!$E$19,'Guide d''utilisation'!$E$20,),"") ->  | K134: =1/COUNTA($B$133:$B$136) -> 0.25
A135: cr 97 | B135: La politique et les objectifs relatifs aux documents d'activité, les résultats des audits, l’analyse des données, les actions correctives et préventives et l’évaluation de la direction sont pris en compte pour améliorer en continu | C135: Choix de VÉRACITÉ | E135: =CHOOSE(I135,"Libellé du critère quand il sera choisi",'Guide d''utilisation'!$B$17,'Guide d''utilisation'!$B$18,'Guide d''utilisation'!$B$19,'Guide d''utilisation'!$B$20,,) -> Libellé du critère quand il sera choisi | G135: 97 | H135: Choix de VÉRACITÉ | I135: =IFERROR((VLOOKUP(C135,'Guide d''utilisation'!$M$16:$N$20,2)),"") -> 1 | J135: =IFERROR(CHOOSE(I135,"",'Guide d''utilisation'!$E$17,'Guide d''utilisation'!$E$18,'Guide d''utilisation'!$E$19,'Guide d''utilisation'!$E$20,),"") ->  | K135: =1/COUNTA($B$133:$B$136) -> 0.25
A136: cr 98 | B136: L'ordre de priorité des actions d'amélioration est déterminé en fonction des résultats de l'évaluation du risque | C136: Choix de VÉRACITÉ | E136: =CHOOSE(I136,"Libellé du critère quand il sera choisi",'Guide d''utilisation'!$B$17,'Guide d''utilisation'!$B$18,'Guide d''utilisation'!$B$19,'Guide d''utilisation'!$B$20,,) -> Libellé du critère quand il sera choisi | G136: 98 | H136: Choix de VÉRACITÉ | I136: =IFERROR((VLOOKUP(C136,'Guide d''utilisation'!$M$16:$N$20,2)),"") -> 1 | J136: =IFERROR(CHOOSE(I136,"",'Guide d''utilisation'!$E$17,'Guide d''utilisation'!$E$18,'Guide d''utilisation'!$E$19,'Guide d''utilisation'!$E$20,),"") ->  | K136: =1/COUNTA($B$133:$B$136) -> 0.25

Sheet Résultats globaux
A1: ='Guide d''utilisation'!B1 -> Document d'appui à la déclaration première partie de conformité à la norme ISO 30301:2011 | H1: Impression sur pages A4 100% en format horizontal
E2: ='Guide d''utilisation'!D2 -> Autodiagnostic selon la norme ISO 30301:2011
A4: Informations sur le Service Management de la Qualité | G4: Informations sur l'Autodiagnostic
A5: ='Guide d''utilisation'!B5 -> Etablissement : | C5: ='Guide d''utilisation'!E5 -> Nom de l'établissement / entreprise / organisation... | E5: =Exigences!A4 -> Date de l'autodiagnostic : | F5: =IF(Exigences!C4="","",Exigences!C4) ->  | G5: =Exigences!A7 -> L'équipe d'autodiagnostic :
A6: ='Guide d''utilisation'!B6 -> Responsable du SMQ : | C6: ='Guide d''utilisation'!E6 -> NOM et Prénom du Responsable Qualité | E6: Responsable : | F6: =IF(Exigences!C5="","",Exigences!C5) -> NOM et Prénom | G6: =Exigences!C7 -> Noms et Prénoms des participants
C7: ='Guide d''utilisation'!E7 -> email : | D7: ='Guide d''utilisation'!I7 -> Tél : | E7: =IF(Exigences!C6="","",Exigences!C6) -> Tél : | F7: =IF(Exigences!E6="","",Exigences!E6) -> Email :
A9: TABLEAUX DE BORD sur les niveaux de CONFORMITÉ et de RÉALISATION selon les exigences de la norme ISO 30301:2011 | M9: Utilitaires pour les CALCULS et les GRAPHIQUES
A10: =CONCATENATE("Niveaux de VÉRACITÉ des ", S13, " critères d'exigence ") -> Niveaux de VÉRACITÉ des 98 critères d'exigence | E10: Niveaux de CONFORMITÉ des ARTICLES aux exigences de la norme
F11: Moyenne générale : | G11: =G33 -> 0 | H11: =E33 -> Insuffisant | K11: Histogramme des niveaux de CONFORMITÉ | P11: Histogramme des niveaux de VÉRACITÉ
K12: CONFORMITÉ | L12: Nb d'Articles | M12: Tracer la moyenne | O12: VÉRACITÉ | Q12: Nb de critères d'exigences | R12: Ecart vs Total des critères | S12: Total des critères
K13: Niveaux | L13: =SUM(L14:L17) -> 21 | M13: : Total ou 0 | O13: Niveaux | P13: N° | Q13: =SUM(Q14:Q17) -> 0 | R13: =154-Q13 -> 154 | S13: =MAX(Exigences!G1:G137) -> 98
A14: =IF(Q13<S13,CONCATENATE("Attention : ",R13," critères ne sont pas encore traités"),"") -> Attention : 154 critères ne sont pas encore traités | K14: ='Guide d''utilisation'!H17 -> Insuffisant | L14: =IFERROR(COUNTIFS($F$35:$F$61,K14),0) -> 21 | M14: =IF($E$33=K14,30,0) -> 30 | O14: Faux | P14: ='Guide d''utilisation'!N17 -> 2 | Q14: =IFERROR(COUNTIFS(Exigences!$I$13:$I$136,$P14),0) -> 0
A15: Niveaux de CONFORMITÉ des 21 SOUS-ARTICLES de la norme (et Moyenne) | K15: ='Guide d''utilisation'!H18 -> Informel | L15: =IFERROR(COUNTIFS($F$35:$F$61,K15),0) -> 0 | M15: =IF($E$33=K15,30,0) -> 0 | O15: Plutôt Faux | P15: ='Guide d''utilisation'!N18 -> 3 | Q15: =IFERROR(COUNTIFS(Exigences!$I$13:$I$136,$P15),0) -> 0
K16: ='Guide d''utilisation'!H19 -> Convaincant | L16: =IFERROR(COUNTIFS($F$35:$F$61,K16),0) -> 0 | M16: =IF($E$33=K16,30,0) -> 0 | O16: Plutôt Vrai | P16: ='Guide d''utilisation'!N19 -> 4 | Q16: =IFERROR(COUNTIFS(Exigences!$I$13:$I$136,$P16),0) -> 0
K17: ='Guide d''utilisation'!H20 -> Conforme | L17: =IFERROR(COUNTIFS($F$35:$F$61,K17),0) -> 0 | M17: =IF($E$33=K17,30,0) -> 0 | O17: Vrai | P17: ='Guide d''utilisation'!N20 -> 5 | Q17: =IFERROR(COUNTIFS(Exigences!$I$13:$I$136,$P17),0) -> 0
A22: BILAN, COMMENTAIRES et PLANS D'AMÉLIORATION
A23: Taux de CONFORMITÉ aux exigences pour les 21 SOUS-ARTICLES de la norme | F23: COMMENTAIRES sur les RÉSULTATS obtenus
F24: Commentaires (collectifs si possible) :
F25: DÉCISIONS : Plans d'action PRIORITAIRES
F26: QUOI Objectifs à atteindre | G26: QUI en Interne ou en Externe | H26: QUAND ET OÙ Date et Champ d'application
F27: Plan n°1 :
F28: Plan n°2 :
A29: en pointillés verts : seuil minimal paramétré pour être "Conforme" (voir onglet {Mode d'Emploi}) | F29: Plan n°3 :
A31: TABLEAU de SYNTHÈSE des RÉSULTATS moyennés de l'évaluation quant au degré de réalisation des actions associées au respect des exigences de l'ISO 30301:2011 | M31: Coloriage des zones des ARTICLES | R31: Tracage de la limite de CONFORMITÉ
F32: Evaluations | G32: Taux % | H32: Niveaux de CONFORMITÉ | K32: =CONCATENATE("Fond ",A34) -> Fond Art. 4 | L32: =CONCATENATE("Fond ",A38) -> Fond Art. 5 | M32: =CONCATENATE("Fond ",A42) -> Fond Art. 6 | N32: =CONCATENATE("Fond ",A45) -> Fond Art. 7 | O32: =CONCATENATE("Fond ",A51) -> Fond Art. 8 | P32: =CONCATENATE("Fond ",A55) -> Fond Art. 9 | Q32: =CONCATENATE("Fond ",A59) -> Fond Art. 10 | R32: ='Guide d''utilisation'!F20 -> 0.9
B33: Niveau moyen sur l'ensemble des articles de la norme ISO 30301:2011 : | E33: =IFERROR(IF(G33<='Guide d''utilisation'!$G$17,'Guide d''utilisation'!$H$17,IF(G33<='Guide d''utilisation'!$G$18,'Guide d''utilisation'!$H$18,IF(G33<='Guide d''utilisation'!$G$19,'Guide d''utilisation'!$H$19,'Guide d''utilisation'!$H$20))),"") -> Insuffisant | G33: =AVERAGE(G34,G38,G42,G45,G51,G55,G59) -> 0 | H33: =PROPER(MID(Exigences!E11,14,9)) -> Niveau 1 | N33: Utilitaires pour les CALCULS et les GRAPHIQUES
A34: =Exigences!A11 -> Art. 4 | B34: =Exigences!B11 -> Contexte de l'organisme | E34: =Exigences!C11 -> Insuffisant | G34: =Exigences!D11 -> 0 | H34: =PROPER(MID(Exigences!E12,14,9)) -> Niveau 1 | K34: 1
B35: =Exigences!A12 -> 4.1 | C35: Contexte | F35: =Exigences!C12 -> Insuffisant | G35: =Exigences!D12 -> 0 | H35: =PROPER(MID(Exigences!E12,14,9)) -> Niveau 1 | K35: 1 | L35: 0 | M35: 0 | N35: 0 | O35: 0 | P35: 0 | Q35: 1 | R35: =$R$32 -> 0.9
B36: =Exigences!A17 -> 4.2 | C36: Exigences | F36: =Exigences!C17 -> Insuffisant | G36: =Exigences!D17 -> 0 | H36: =PROPER(MID(Exigences!E17,14,9)) -> Niveau 1 | K36: 1 | L36: 0 | M36: 0 | N36: 0 | O36: 0 | P36: 0 | Q36: 0 | R36: =$R$32 -> 0.9
B37: =Exigences!A22 -> 4.3 | C37: Domaine d'application du SGDA | F37: =Exigences!C22 -> Insuffisant | G37: =Exigences!D22 -> 0 | H37: =PROPER(MID(Exigences!E22,14,9)) -> Niveau 1 | K37: 1 | L37: 0 | M37: 0 | N37: 0 | O37: 0 | P37: 0 | Q37: 0 | R37: =$R$32 -> 0.9
A38: =Exigences!A25 -> Art. 5 | B38: =Exigences!B25 -> Leadership | E38: =Exigences!C25 -> Insuffisant | G38: =Exigences!D25 -> 0 | H38: =PROPER(MID(Exigences!E25,14,9)) -> Niveau 1 | K38: 1
B39: =Exigences!A26 -> 5.1 | C39: Leadership et engagement | F39: =Exigences!C26 -> Insuffisant | G39: =Exigences!D26 -> 0 | H39: =PROPER(MID(Exigences!E26,14,9)) -> Niveau 1 | K39: 0 | L39: 1 | M39: 0 | N39: 0 | O39: 0 | P39: 0 | Q39: 0 | R39: =$R$32 -> 0.9
B40: =Exigences!A31 -> 5.2 | C40: Politique | F40: =Exigences!C31 -> Insuffisant | G40: =Exigences!D31 -> 0 | H40: =PROPER(MID(Exigences!E31,14,9)) -> Niveau 1 | K40: 0 | L40: 1 | M40: 0 | N40: 0 | O40: 0 | P40: 0 | Q40: 0 | R40: =$R$32 -> 0.9
B41: =Exigences!A36 -> 5.3 | C41: Rôles, responsabilités et habilitations | F41: =Exigences!C36 -> Insuffisant | G41: =Exigences!D36 -> 0 | H41: =PROPER(MID(Exigences!E36,14,9)) -> Niveau 1 | L41: 1 | M41: 0 | N41: 0 | O41: 0 | P41: 0 | Q41: 0 | R41: =$R$32 -> 0.9
A42: =Exigences!A41 -> Art. 6 | B42: =Exigences!B41 -> Planification | E42: =Exigences!C41 -> Insuffisant | G42: =Exigences!D41 -> 0 | H42: =PROPER(MID(Exigences!E41,14,9)) -> Niveau 1 | K42: 0
B43: =Exigences!A42 -> 6.1 | C43: Actions face aux risques et opportunités | F43: =Exigences!C42 -> Insuffisant | G43: =Exigences!D42 -> 0 | H43: =PROPER(MID(Exigences!E42,14,9)) -> Niveau 1 | K43: 0 | L43: 1 | M43: 1 | N43: 0 | O43: 0 | P43: 0 | Q43: 0 | R43: =$R$32 -> 0.9
B44: =Exigences!A47 -> 6.2 | C44: Objectifs pour les documents d'activité et leur planification | F44: =Exigences!C47 -> Insuffisant | G44: =Exigences!D47 -> 0 | H44: =PROPER(MID(Exigences!E47,14,9)) -> Niveau 1 | K44: 0 | L44: 0 | M44: 1 | N44: 0 | O44: 0 | P44: 0 | Q44: 0 | R44: =$R$32 -> 0.9
A45: =Exigences!A55 -> Art. 7 | B45: =Exigences!B55 -> Support | E45: =Exigences!C55 -> Insuffisant | G45: =Exigences!D55 -> 0 | H45: =PROPER(MID(Exigences!E55,14,9)) -> Niveau 1 | K45: 0
B46: =Exigences!A56 -> 7.1 | C46: Ressources | F46: =Exigences!C56 -> Insuffisant | G46: =Exigences!D56 -> 0 | H46: =PROPER(MID(Exigences!E56,14,9)) -> Niveau 1 | K46: 0 | L46: 0 | M46: 1 | N46: 1 | O46: 0 | P46: 0 | Q46: 0 | R46: =$R$32 -> 0.9
B47: =Exigences!A61 -> 7.2 | C47: Compétences | F47: =Exigences!C61 -> Insuffisant | G47: =Exigences!D61 -> 0 | H47: =PROPER(MID(Exigences!E61,14,9)) -> Niveau 1 | K47: 0 | L47: 0 | M47: 0 | N47: 1 | O47: 0 | P47: 0 | Q47: 0 | R47: =$R$32 -> 0.9
B48: =Exigences!A66 -> 7.3 | C48: Sensibilisation et formation | F48: =Exigences!C66 -> Insuffisant | G48: =Exigences!D66 -> 0 | H48: =PROPER(MID(Exigences!E66,14,9)) -> Niveau 1 | K48: 0 | L48: 0 | M48: 0 | N48: 1 | O48: 0 | P48: 0 | Q48: 0 | R48: =$R$32 -> 0.9
B49: =Exigences!A73 -> 7.4 | C49: Communication | F49: =Exigences!C73 -> Insuffisant | G49: =Exigences!D73 -> 0 | H49: =PROPER(MID(Exigences!E73,14,9)) -> Niveau 1 | K49: 0 | L49: 0 | M49: 0 | N49: 1 | O49: 0 | P49: 0 | Q49: 0 | R49: =$R$32 -> 0.9
B50: =Exigences!A77 -> 7.5 | C50: Documentation | F50: =Exigences!C77 -> Insuffisant | G50: =Exigences!D77 -> 0 | H50: =PROPER(MID(Exigences!E77,14,9)) -> Niveau 1 | L50: 0 | M50: 0 | N50: 1 | O50: 0 | P50: 0 | Q50: 0 | R50: =$R$32 -> 0.9
A51: =Exigences!A85 -> Art. 8 | B51: =Exigences!B85 -> Réalisation des activités opérationnelles | E51: =Exigences!C85 -> Insuffisant | G51: =Exigences!D85 -> 0 | H51: =PROPER(MID(Exigences!E85,14,9)) -> Niveau 1 | K51: 0
B52: =Exigences!A86 -> 8.1 | C52: Gestion de la réalisation | F52: =Exigences!C86 -> Insuffisant | G52: =Exigences!D86 -> 0 | H52: =PROPER(MID(Exigences!E86,14,9)) -> Niveau 1 | K52: 0 | L52: 0 | M52: 0 | N52: 1 | O52: 1 | P52: 0 | Q52: 0 | R52: =$R$32 -> 0.9
B53: =Exigences!A93 -> 8.2 | C53: conception des documents d'activité | F53: =Exigences!C93 -> Insuffisant | G53: =Exigences!D93 -> 0 | H53: =PROPER(MID(Exigences!E93,14,9)) -> Niveau 1 | K53: 0 | L53: 0 | M53: 0 | N53: 0 | O53: 1 | P53: 0 | Q53: 0 | R53: 0.9
B54: =Exigences!A99 -> 8.3 | C54: Mise en œuvre d'SGDA | F54: =Exigences!C99 -> Insuffisant | G54: =Exigences!D99 -> 0 | H54: =PROPER(MID(Exigences!E99,14,9)) -> Niveau 1 | K54: 0 | L54: 0 | M54: 0 | N54: 0 | O54: 1 | P54: 0 | Q54: 0 | R54: 0.9
A55: =Exigences!A103 -> Art. 9 | B55: =Exigences!B103 -> Évaluation des performances | E55: =Exigences!C103 -> Insuffisant | G55: =Exigences!D103 -> 0 | H55: =PROPER(MID(Exigences!E103,14,9)) -> Niveau 1 | K55: 0
B56: =Exigences!A104 -> 9.1 | C56: Surveillance et évaluation | F56: =Exigences!C104 -> Insuffisant | G56: =Exigences!D104 -> 0 | H56: =PROPER(MID(Exigences!E104,14,9)) -> Niveau 1 | K56: 0 | L56: 0 | M56: 0 | N56: 0 | O56: 1 | P56: 1 | Q56: 0 | R56: 0.9
B57: =Exigences!A110 -> 9.2 | C57: Audit interne | F57: =Exigences!C110 -> Insuffisant | G57: =Exigences!D110 -> 0 | H57: =PROPER(MID(Exigences!E110,14,9)) -> Niveau 1 | K57: 0 | L57: 0 | M57: 0 | N57: 0 | O57: 0 | P57: 1 | Q57: 0 | R57: 0.9
B58: =Exigences!A116 -> 9.3 | C58: Revue de direction | F58: =Exigences!C116 -> Insuffisant | G58: =Exigences!D116 -> 0 | H58: =PROPER(MID(Exigences!E116,14,9)) -> Niveau 1 | L58: 0 | M58: 0 | N58: 0 | O58: 0 | P58: 1 | Q58: 0 | R58: 0.9
A59: =Exigences!A121 -> Art. 10 | B59: =Exigences!B121 -> Amélioration | E59: =Exigences!C121 -> Insuffisant | G59: =Exigences!D121 -> 0 | H59: =PROPER(MID(Exigences!E121,14,9)) -> Niveau 1 | K59: 0
B60: =Exigences!A122 -> 10.1 | C60: Contrôle des non-conformités et actions correctives | F60: =Exigences!C122 -> Insuffisant | G60: =Exigences!D122 -> 0 | H60: =PROPER(MID(Exigences!E122,14,9)) -> Niveau 1 | K60: 0 | L60: 0 | M60: 0 | N60: 0 | O60: 0 | P60: 1 | Q60: 1 | R60: =$R$32 -> 0.9
B61: =Exigences!A132 -> 10.2 | C61: Amélioration continue | F61: =Exigences!C132 -> Insuffisant | G61: =Exigences!D132 -> 0 | H61: =PROPER(MID(Exigences!E132,14,9)) -> Niveau 1 | K61: 0 | L61: 0 | M61: 0 | N61: 0 | O61: 0 | P61: 0 | Q61: 1 | R61: =$R$32 -> 0.9

Sheet Résultats par Article
A1: ='Guide d''utilisation'!B1 -> Document d'appui à la déclaration première partie de conformité à la norme ISO 30301:2011 | H1: Impression sur pages A4 100% en format horizontal
E2: Résultats détaillés par ARTICLE de l'autodiagnostic selon la norme ISO 30301:2011
A4: Informations sur le Service Management de la Qualité | G4: Informations sur l'Autodiagnostic
A5: ='Guide d''utilisation'!B5 -> Etablissement : | C5: ='Guide d''utilisation'!E5 -> Nom de l'établissement / entreprise / organisation... | E5: =Exigences!A4 -> Date de l'autodiagnostic : | F5: =IF(Exigences!C4="","",Exigences!C4) ->  | G5: =Exigences!A7 -> L'équipe d'autodiagnostic :
A6: ='Guide d''utilisation'!B6 -> Responsable du SMQ : | C6: ='Guide d''utilisation'!E6 -> NOM et Prénom du Responsable Qualité | E6: Responsable : | F6: =IF(Exigences!C5="","",Exigences!C5) -> NOM et Prénom | G6: =Exigences!C7 -> Noms et Prénoms des participants
C7: ='Guide d''utilisation'!E7 -> email : | D7: ='Guide d''utilisation'!I7 -> Tél : | E7: =IF(Exigences!C6="","",Exigences!C6) -> Tél : | F7: =IF(Exigences!E6="","",Exigences!E6) -> Email :
B9: =Exigences!A11 -> Art. 4 | C9: =Exigences!B11 -> Contexte de l'organisme
B10: Niveau d'évaluation | C10: Taux de CONFORMITÉ aux critères d'exigence | F10: COMMENTAIRES sur les RÉSULTATS obtenus
B11: ='Résultats globaux'!E34 -> Insuffisant | C11: ='Résultats globaux'!G34 -> 0 | F11: Commentaires (collectifs si possible) :
F12: DÉCISIONS : Plans d'action PRIORITAIRES
F13: QUOI Objectifs à atteindre | G13: QUI en Interne ou en Externe | H13: QUAND ET OÙ Date et Champ d'application
F14: Plan n°1 :
F15: Plan n°2 :
F16: Plan n°3 :
B18: =Exigences!A25 -> Art. 5 | C18: =Exigences!B25 -> Leadership
B19: Niveau d'évaluation | C19: Taux de CONFORMITÉ aux critères d'exigence | F19: COMMENTAIRES sur les RÉSULTATS obtenus
B20: ='Résultats globaux'!E38 -> Insuffisant | C20: ='Résultats globaux'!G38 -> 0 | F20: Commentaires (collectifs si possible) :
F21: DÉCISIONS : Plans d'action PRIORITAIRES
F22: QUOI Objectifs à atteindre | G22: QUI en Interne ou en Externe | H22: QUAND ET OÙ Date et Champ d'application
F23: Plan n°1 :
F24: Plan n°2 :
F25: Plan n°3 :
B27: =Exigences!A41 -> Art. 6 | C27: =Exigences!B41 -> Planification
B28: Niveau d'évaluation | C28: Taux de CONFORMITÉ aux critères d'exigence | F28: COMMENTAIRES sur les RÉSULTATS obtenus
B29: ='Résultats globaux'!E42 -> Insuffisant | C29: ='Résultats globaux'!G42 -> 0 | F29: Commentaires (collectifs si possible) :
F30: DÉCISIONS : Plans d'action PRIORITAIRES
F31: QUOI Objectifs à atteindre | G31: QUI en Interne ou en Externe | H31: QUAND ET OÙ Date et Champ d'application
F32: Plan n°1 :
F33: Plan n°2 :
F34: Plan n°3 :
B36: =Exigences!A55 -> Art. 7 | C36: =Exigences!B55 -> Support
B37: Niveau d'évaluation | C37: Taux de CONFORMITÉ aux critères d'exigence | F37: COMMENTAIRES sur les RÉSULTATS obtenus
B38: ='Résultats globaux'!E45 -> Insuffisant | C38: ='Résultats globaux'!G45 -> 0 | F38: Commentaires (collectifs si possible) :
F39: DÉCISIONS : Plans d'action PRIORITAIRES
F40: QUOI Objectifs à atteindre | G40: QUI en Interne ou en Externe | H40: QUAND ET OÙ Date et Champ d'application
F41: Plan n°1 :
F42: Plan n°2 :
F43: Plan n°3 :
B45: =Exigences!A85 -> Art. 8 | C45: =Exigences!B85 -> Réalisation des activités opérationnelles
B46: Niveau d'évaluation | C46: Taux de CONFORMITÉ aux critères d'exigence | F46: COMMENTAIRES sur les RÉSULTATS obtenus
B47: ='Résultats globaux'!E51 -> Insuffisant | C47: ='Résultats globaux'!G51 -> 0 | F47: Commentaires (collectifs si possible) :
F48: DÉCISIONS : Plans d'action PRIORITAIRES
F49: QUOI Objectifs à atteindre | G49: QUI en Interne ou en Externe | H49: QUAND ET OÙ Date et Champ d'application
F50: Plan n°1 :
F51: Plan n°2 :
F52: Plan n°3 :
B54: =Exigences!A103 -> Art. 9 | C54: =Exigences!B103 -> Évaluation des performances
B55: Niveau d'évaluation | C55: Taux de CONFORMITÉ aux critères d'exigence | F55: COMMENTAIRES sur les RÉSULTATS obtenus
B56: ='Résultats globaux'!E55 -> Insuffisant | C56: ='Résultats globaux'!G55 -> 0 | F56: Commentaires (collectifs si possible) :
F57: DÉCISIONS : Plans d'action PRIORITAIRES
F58: QUOI Objectifs à atteindre | G58: QUI en Interne ou en Externe | H58: QUAND ET OÙ Date et Champ d'application
F59: Plan n°1 :
F60: Plan n°2 :
F61: Plan n°3 :
B63: =Exigences!A121 -> Art. 10 | C63: =Exigences!B121 -> Amélioration
B64: Niveau d'évaluation | C64: Taux de CONFORMITÉ aux critères d'exigence | F64: COMMENTAIRES sur les RÉSULTATS obtenus
B65: ='Résultats globaux'!E59 -> Insuffisant | C65: ='Résultats globaux'!G59 -> 0 | F65: Commentaires (collectifs si possible) :
F66: DÉCISIONS : Plans d'action PRIORITAIRES
F67: QUOI Objectifs à atteindre | G67: QUI en Interne ou en Externe | H67: QUAND ET OÙ Date et Champ d'application
F68: Plan n°1 :
F69: Plan n°2 :
F70: Plan n°3 :

Sheet Conseils
D1: Autodiagnostic selon la norme ISO 30301:2011
D2: "Système de gestion des documents d'activité - Exigences", édition Afnor, www.afnor.org, Décembre 2011
D4: Quelques CONSEILS pour atteindre le respect des exigences...
C5: Articles | D5: Quoi | E5: Qui
A6: Art. 4 Contexte de l'organisme
B7: 4.1 | C7: Compréhension de l'organisme et de son contexte | D7: L’organisme doit déterminer les enjeux internes et externes liés au contexte socio-économique dans lequel il se situe. De plus, les parties intéressées doivent être identifiées ainsi que leurs attentes et exigences. Ces dernières seront listées et revus périodiquement. L'organisme doit tenir compte, évaluer et documenter ses besoins opérationnels, les exigences légales et autres exigences . Le domaine d'application du système de gestion des documents d'activité (SGDA) est fixé, ainsi que l'ensemble des processus nécessaires à la mise en oeuvre de ce système. | E7: Responsable Qualité et Direction Générale
B8: 4.2 | C8: Exigences opérationnelles, exigences légales et autres exigences
B9: 4.3 | C9: Détermination du domaine d'application du SGDA | G9: Lien : UTC - www.utc.fr/master-qualite, puis "Travaux" "Qualité-Management", réf n°451
A10: Art. 5 Leadership
B11: 5.1 | C11: Engagement de la direction | D11: Dans cet article, la responsabilité de la direction est de communiquer sa politique qualité qu'elle l'appliquera et la mettra à jour par la suite. L'engagement de la direction consiste aussi à attribuer les responsabilités et les autorités au sein de l'organisme afin d'appliquer sa politique qualité. | E11: Responsable Qualité et Direction Générale | G11: http://www.utc.fr/master-qualite/public/publications/qualite_et_management/MQ_M2/2017-2018/MIM_stages/TEBOURBI_Imen/index.html
B12: 5.2 | C12: Politique
B13: 5.3 | C13: Rôles, responsabilités et habilitations au sein de l'organisme
A14: Art. 6 Planification
B15: 6.1 | C15: Actions à mener pour prendre en compte les risques et opportunités | D15: Ce paragraphe stipule l’identification des risques liés aux enjeux de l’organisme et de prendre les mesures nécessaires pour y remédier. Des objectifs fixés, pertinents et cohérents avec la politique sont à atteindre ,concernant les documents d'activité, doivent être documentés, communiqués à l’ensemble des acteurs afin de pouvoir évaluer la performance. | E15: Responsable Qualité et Direction Générale
B16: 6.2 | C16: Objectifs à atteindre pour les documents d'activité et moyens à mettre en œuvre
A17: Art. 7 Support
B18: 7.1 | C18: Ressources | D18: Les ressources humaines et matérielles nécessaires sont mises à disposition pour la mise en oeuvre du SGDA. Les compétences de personnels qui ont un impact direct sur les processus liés aux documents et les systèmes documentaires sont déterminées. D'autre part, sur le volet informationnel, l'organisme doit planifier des réunions périodiques et des entretiens avec l'ensemble des pilotes de processus. Ceci pour vérifier l'existence, la conformité et l'application sur le terrain des dispositions demandées. Toutes les informations documentées exigées doivent ainsi être créées, mises à jour, validées, diffusées et utilisées par l'ensemble des parties prenantes. | E18: Responsable Qualité et pilotes de processus (RH, Système informatique, Gestion administrative, gestion financière, Maintenance et Infrastructures)
B19: 7.2 | C19: Compétences
B20: 7.3 | C20: Sensibilisation et formation
B21: 7.4 | C21: Communication
B22: 7.5 | C22: Documentation
A23: Art. 8 Réalisation
B24: 8.1 | C24: Planification et contrôle de la réalisation | D24: L'organisme doit déterminer, planifier, mettre en œuvre et contrôler les processus nécessaires à la réalisation des activités opérationnelles, après avoir recensé les besoins de clients et receuilli les informations documentées explicitant ces besoins. Pour assurer la continuité de l'activité, il est nécessaire d'analyser les processus de façon continue afin de faire face aux risques. Ensuite, les informations relatives aux actions menées doivent être documentées et conservées. Il est également essentiel de faire des simulations afin de valider les bons comportements du système documentaire. | E24: Direction Générale, Responsable Qualité, pilotes des processus, Personnel
B25: 8.2 | C25: Conception des processus liés aux documents d'activité
B26: 8.3 | C26: Mise en œuvre de système documentaire
A27: Art. 9 Évaluation des performances
B28: 9.1 | C28: Surveillance, mesure, analyse et évaluation | D28: La version ISO 30301 : 2011 renforce l'évaluation de la performance d'un système de gestion des documents d'activité. Cela requiert la mise en place de moyen de surveillance et de mesure des résultats obtenus. Ces résultats attendus, en interne comme en externe, concerne l'efficacité des systèmes documentaires ainsi que la satisfaction des parties intéressées. Cela nécessite d’avoir une surveillance constante sur les processus afin de réagir en cas d'anomalie . Il est important de programmer des audits internes de façon périodique, en fournissant les moyens nécessaires (humains et matériels) afin d'entreprendre sans délai indu la correction et les actions correctives appropriées s'il y a écart. | E28: Direction Générale, Responsable Qualité, pilotes des processus, Personnel
B29: 9.2 | C29: Audit interne
B30: 9.3 | C30: Revue de direction
A31: Art. 10 Amélioration
B32: 10.1 | C32: Contrôle des non-conformités et actions correctives | D32: Les besoins et les attentes des parties intéressées doivent être prises en considération pour améliorer la performance de vos activités. Il est important d’étudier l’évolution des besoins des clients, des compétences, des exigences réglementaires ou tout autre facteur. L'organisme s'engage donc à améliorer en continu son système de gestion des documents d'activité. Cela passe par la correction des anomalies et des non conformités , mais aussi par les actions préventives suite à l'étude et l'analyse des résultats d'évaluation de la performance du SGDA. L'organisme sera donc constamment dans une optique d'amélioration continue. | E32: Direction Générale, Responsable Qualité, pilotes des processus, Personnel
B33: 10.2 | C33: Amélioration continue
